Workbook

Sheet ORÇAMENTO
A1: <---- NUMERAR SERVIÇOS PARA CPU | E1: Ministério do Desenvolvimento Regional
E2: Companhia de Desenvolvimento dos Vales do São Francisco e do Parnaíba
E3: 1ª Superintendência Regional
B5: OBRA: | C5: PAVIMENTAÇÃO ASFÁLTICA EM CBUQ - VIAS URBANAS DIVERSAS (MATO VERDE / MG) | J5: BDI Serviços (%): | L5: ='BDI SERV'!E26 -> 21.62
B6: DATA: | C6: AGOSTO / 2025 | I6: BDI Diferenciado Serviços (%): | L6: ='BDI FORN'!D31 -> 15
B7: PRAZO DE EXECUÇÃO: 240 DIAS | J7: BDI Fornecimentos (%): | L7: ='BDI FORN'!D31 -> 15
B8: PLANILHA DE ORÇAMENTAÇÃO
B9: ITEM | C9: CÓDIGO | D9: FONTE | E9: DISCRIMINAÇÃO | F9: TIPO | G9: UNID. | H9: QUANT. | I9: VR. UNIT.C/BDI | J9: PR. UNIT.C/BDI | K9: C. TOT.S/BDI | L9: P. TOT.C/BDI
A10: A | B10: 1 | E10: SERVIÇOS PRELIMINARES | L10: =SUM(L11:L16) -> 353439.22
A11: 1 | B11: 1.1 | C11: CPU.1 | D11: SICRO | E11: MOBILIZAÇÃO E DESMOBILIZAÇÃO | F11: SERV | G11: GL | H11: 1 | I11: =VLOOKUP(A11,'CPU-SERV'!A:K,11,0) -> 15816.96 | J11: =TRUNC(_xlfn.IFS(F11="SERV",I11*(1+$L$5/100),F11="SERV DIF",I11*(1+$L$6/100),F11="FORN",I11*(1+$L$7/100)),2) -> 19236.58 | K11: =TRUNC(H11*I11,2) -> 15816.96 | L11: =TRUNC(H11*J11,2) -> 19236.58
A12: 2 | B12: 1.2 | C12: CPU.2 | D12: SICRO | E12: ADMINISTRAÇÃO LOCAL | F12: SERV | G12: GL | H12: 1 | I12: =VLOOKUP(A12,'CPU-SERV'!A:K,11,0) -> 197551.27 | J12: =TRUNC(_xlfn.IFS(F12="SERV",I12*(1+$L$5/100),F12="SERV DIF",I12*(1+$L$6/100),F12="FORN",I12*(1+$L$7/100)),2) -> 240261.85 | K12: =TRUNC(H12*I12,2) -> 197551.27 | L12: =TRUNC(H12*J12,2) -> 240261.85
A13: 3 | B13: 1.3 | C13: CPU.3 | D13: CODEVASF | E13: CANTEIRO DE OBRAS | F13: SERV | G13: GL | H13: 1 | I13: =VLOOKUP(A13,'CPU-SERV'!A:K,11,0) -> 19489.27 | J13: =TRUNC(_xlfn.IFS(F13="SERV",I13*(1+$L$5/100),F13="SERV DIF",I13*(1+$L$6/100),F13="FORN",I13*(1+$L$7/100)),2) -> 23702.85 | K13: 19489.27 | L13: 23702.85
A14: 4 | B14: 1.4 | C14: 103689 | D14: SINAPI | E14: PLACA DE OBRA EM CHAPA DE AÇO GALVANIZADO | F14: SERV | G14: M2 | H14: 8 | I14: =VLOOKUP(A14,'CPU-SERV'!A:K,11,0) -> 550.64 | J14: =TRUNC(_xlfn.IFS(F14="SERV",I14*(1+$L$5/100),F14="SERV DIF",I14*(1+$L$6/100),F14="FORN",I14*(1+$L$7/100)),2) -> 669.68 | K14: 4405.12 | L14: 5357.44
A15: 5 | B15: 1.5 | C15: CPU. 4 | D15: CODEVASF | E15: VEÍCULO PARA A FISCALIZAÇÃO, MÁXIMO 02 ANOS DE USO OU 50.000KM, PREFERENCIALMENTE NA COR BRANCA, COM IDENTIFICAÇÃO CONFORME ESPECIFICAÇÕES DA CODEVASF, INCLUSIVE COMBUSTÍVEL, MANUTENÇÃO, SEGURO E IMPOSTOS - CONFORME ESPECIFICAÇÕES | F15: SERV | G15: MÊS | H15: 10 | I15: =VLOOKUP(A15,'CPU-SERV'!A:K,11,0) -> 4264.15 | J15: =TRUNC(_xlfn.IFS(F15="SERV",I15*(1+$L$5/100),F15="SERV DIF",I15*(1+$L$6/100),F15="FORN",I15*(1+$L$7/100)),2) -> 5186.05 | K15: =TRUNC(H15*I15,2) -> 42641.5 | L15: =TRUNC(H15*J15,2) -> 51860.5
A16: 6 | B16: 1.6 | C16: 78472 | D16: SINAPI | E16: SERVIÇOS TOPOGRÁFICOS PARA PAVIMENTAÇÃO, INCLUSIVE LEVANTAMENTO PLANIALTIMÉTRICO CADASTRAL, GERAÇÃO DE NOTAS DE SERVIÇO, SEÇÕES TRANSVERSAIS E GREIDE, ESTAQUEAMENTO E ACOMPANHAMENTO EXECUTIVO | F16: SERV | G16: M2 | H16: 21000 | I16: =VLOOKUP(A16,'CPU-SERV'!A:K,11,0) -> 0.51 | J16: =TRUNC(_xlfn.IFS(F16="SERV",I16*(1+$L$5/100),F16="SERV DIF",I16*(1+$L$6/100),F16="FORN",I16*(1+$L$7/100)),2) -> 0.62 | K16: 10710 | L16: 13020
A17: B | B17: 2 | E17: TERRAPLANAGEM E PAVIMENTAÇÃO | L17: =SUM(L18:L23) -> 632944
A18: 7 | B18: 2.1 | C18: 5502140 | D18: SICRO | E18: ESCAVAÇÃO, CARGA E TRANSPORTE DE MATERIAL DE 1ª CATEGORIA - DMT 1.000 A 1.200M, CAMINHO DE SERVIÇO EM REVESTIMENTO PRIMÁRIO | F18: SERV | G18: M3 | H18: 6400 | I18: =VLOOKUP(A18,'CPU-SERV'!A:K,11,0) -> 6.89 | J18: =TRUNC(_xlfn.IFS(F18="SERV",I18*(1+$L$5/100),F18="SERV DIF",I18*(1+$L$6/100),F18="FORN",I18*(1+$L$7/100)),2) -> 8.37 | K18: 44096 | L18: =TRUNC(H18*J18,2) -> 53568
A19: 9 | B19: 2.2 | C19: 4011209 | D19: SICRO | E19: REGULARIZAÇÃO E COMPACTAÇÃO DO SUBLEITO | F19: SERV | G19: M2 | H19: 21000 | I19: =VLOOKUP(A19,'CPU-SERV'!A:K,11,0) -> 1.56 | J19: =TRUNC(_xlfn.IFS(F19="SERV",I19*(1+$L$5/100),F19="SERV DIF",I19*(1+$L$6/100),F19="FORN",I19*(1+$L$7/100)),2) -> 1.89 | K19: 32760 | L19: 39690
A20: 10 | B20: 2.3 | C20: 4011219 | D20: SICRO | E20: EXECUÇÃO E COMPACTAÇÃO DE BASE E OU SUB BASE PARA PAVIMENTAÇÃO COM SOLO ESTABILIZADO GRANULOMETRICAMENTE SEM MISTURA, COM MATERIAL DE JAZIDA - EXCLUSIVE TRANSPORTE | F20: SERV | G20: M3 | H20: 3200 | I20: =VLOOKUP(A20,'CPU-SERV'!A:K,11,0) -> 14.79 | J20: =TRUNC(_xlfn.IFS(F20="SERV",I20*(1+$L$5/100),F20="SERV DIF",I20*(1+$L$6/100),F20="FORN",I20*(1+$L$7/100)),2) -> 17.98 | K20: 47328 | L20: 57536
A21: 12 | B21: 2.4 | C21: 4011352 | D21: SICRO | E21: IMPRIMAÇÃO COM EMULSÃO ASFÁLTICA (EAI) | F21: SERV | G21: M2 | H21: 21000 | I21: =VLOOKUP(A21,'CPU-SERV'!A:K,11,0) -> 0.41 | J21: =TRUNC(_xlfn.IFS(F21="SERV",I21*(1+$L$5/100),F21="SERV DIF",I21*(1+$L$6/100),F21="FORN",I21*(1+$L$7/100)),2) -> 0.49 | K21: 8610 | L21: 10290
A22: 13 | B22: 2.5 | C22: 4011353 | D22: SICRO | E22: PINTURA DE LIGAÇÃO COM EMULSÃO ASFÁLTICA RR-1C | F22: SERV | G22: M2 | H22: 18000 | I22: =VLOOKUP(A22,'CPU-SERV'!A:K,11,0) -> 0.28 | J22: =TRUNC(_xlfn.IFS(F22="SERV",I22*(1+$L$5/100),F22="SERV DIF",I22*(1+$L$6/100),F22="FORN",I22*(1+$L$7/100)),2) -> 0.34 | K22: 5040 | L22: 6120
A23: 14 | B23: 2.6 | C23: 4011463 | D23: SICRO | E23: EXECUÇÃO DE PAVIMENTO COM APLICAÇÃO DE CONCRETO ASFÁLTICO USINADO A QUENTE (CBUQ), CAMADA DE ROLAMENTO - EXCLUSIVE TRANSPORTE | F23: SERV | G23: T | H23: 2200 | I23: =VLOOKUP(A23,'CPU-SERV'!A:K,11,0) -> 174.07 | J23: =TRUNC(_xlfn.IFS(F23="SERV",I23*(1+$L$5/100),F23="SERV DIF",I23*(1+$L$6/100),F23="FORN",I23*(1+$L$7/100)),2) -> 211.7 | K23: 382954 | L23: 465740
A24: C | B24: 3 | E24: TRANSPORTE DE MATERIAIS | L24: =SUM(L25:L29) -> 316714
A25: 15 | B25: 3.1 | C25: 5915321 | D25: SICRO | E25: TRANSPORTE COM CAMINHÃO BASCULANTE, EM RODOVIA PAVIMENTADA | F25: SERV | G25: TXKM | H25: 75000 | I25: =VLOOKUP(A25,'CPU-SERV'!A:K,11,0) -> 0.66 | J25: =TRUNC(_xlfn.IFS(F25="SERV",I25*(1+$L$5/100),F25="SERV DIF",I25*(1+$L$6/100),F25="FORN",I25*(1+$L$7/100)),2) -> 0.8 | K25: 49500 | L25: =TRUNC(H25*J25,2) -> 60000
A26: 16 | B26: 3.2 | C26: 5915320 | D26: SICRO | E26: TRANSPORTE COM CAMINHÃO BASCULANTE, RODOVIA EM REVESTIMENTO PRIMÁRIO | F26: SERV | G26: TXKM | H26: 53000 | I26: =VLOOKUP(A26,'CPU-SERV'!A:K,11,0) -> 0.73 | J26: =TRUNC(_xlfn.IFS(F26="SERV",I26*(1+$L$5/100),F26="SERV DIF",I26*(1+$L$6/100),F26="FORN",I26*(1+$L$7/100)),2) -> 0.88 | K26: 38690 | L26: =TRUNC(H26*J26,2) -> 46640
A27: 17 | B27: 3.3 | C27: 5914434 | D27: SICRO | E27: TRANSPORTE COM CAMINHÃO CARROCERIA 9T, EM VIA URBANA PAVIMENTADA | F27: SERV | G27: TXKM | H27: 4000 | I27: =VLOOKUP(A27,'CPU-SERV'!A:K,11,0) -> 0.79 | J27: =TRUNC(_xlfn.IFS(F27="SERV",I27*(1+$L$5/100),F27="SERV DIF",I27*(1+$L$6/100),F27="FORN",I27*(1+$L$7/100)),2) -> 0.96 | K27: 3160 | L27: 3840
A28: 18 | B28: 3.4 | C28: 5914612 | D28: SICRO | E28: TRANSPORTE DE MASSA ASFÁLTICA COM CAMINHÃO BASCULANTE, EM VIA URBANA PAVIMENTADA | F28: SERV | G28: TXKM | H28: 210000 | I28: =VLOOKUP(A28,'CPU-SERV'!A:K,11,0) -> 0.81 | J28: =TRUNC(_xlfn.IFS(F28="SERV",I28*(1+$L$5/100),F28="SERV DIF",I28*(1+$L$6/100),F28="FORN",I28*(1+$L$7/100)),2) -> 0.98 | K28: 170100 | L28: =TRUNC(H28*J28,2) -> 205800
A29: 19 | B29: 3.5 | C29: 5914622 | D29: SICRO | E29: TRANSPORTE COM CAMINHÃO TANQUE DE TRANSPORTE DE MATERIAL ASFÁLTICO DE 30000 L, EM VIA URBANA PAVIMENTADA | F29: SERV | G29: TXKM | H29: 200 | I29: =VLOOKUP(A29,'CPU-SERV'!A:K,11,0) -> 1.79 | J29: =TRUNC(_xlfn.IFS(F29="SERV",I29*(1+$L$5/100),F29="SERV DIF",I29*(1+$L$6/100),F29="FORN",I29*(1+$L$7/100)),2) -> 2.17 | K29: 358 | L29: 434
A30: E | B30: 4 | E30: DRENAGEM E OBRAS COMPLEMENTARES | L30: =SUM(L31:L35) -> 783411
A31: 20 | B31: 4.1 | C31: 94273 | D31: SINAPI | E31: ASSENTAMENTO DE GUIA (MEIO-FIO) PRÉ-MOLDADO DE CONCRETO - 100X15X13X30 CM (COMPRIMENTO X BASE INFERIOR X BASE SUPERIOR X ALTURA) - USO VIÁRIO | F31: SERV | G31: M | H31: 6500 | I31: =VLOOKUP(A31,'CPU-SERV'!A:K,11,0) -> 57.96 | J31: =TRUNC(_xlfn.IFS(F31="SERV",I31*(1+$L$5/100),F31="SERV DIF",I31*(1+$L$6/100),F31="FORN",I31*(1+$L$7/100)),2) -> 70.49 | K31: 376740 | L31: =TRUNC(H31*J31,2) -> 458185
A32: 23 | B32: 4.2 | C32: 94287a | D32: SINAPI | E32: EXECUÇÃO DE SARJETA EM CONCRETO USINADO, MOLDADO IN LOCO - 30CM DE BASE X 5CM DE ALTURA | F32: SERV | G32: M | H32: 6500 | I32: =VLOOKUP(A32,'CPU-SERV'!A:K,11,0) -> 24.41 | J32: =TRUNC(_xlfn.IFS(F32="SERV",I32*(1+$L$5/100),F32="SERV DIF",I32*(1+$L$6/100),F32="FORN",I32*(1+$L$7/100)),2) -> 29.68 | K32: 158665 | L32: 192920
A33: 46 | B33: 4.3 | C33: 5213440 | D33: SICRO | E33: PLACA DE REGULAMENTAÇÃO EM AÇO, D=60CM - PELÍCULA RETRORREFLETIVA - FORNECIMENTO E INSTALAÇÃO, INCLUSIVE SUPORTE | F33: SERV | G33: UN. | H33: 150 | I33: =VLOOKUP(A33,'CPU-SERV'!A:K,11,0) -> 271.87 | J33: =TRUNC(_xlfn.IFS(F33="SERV",I33*(1+$L$5/100),F33="SERV DIF",I33*(1+$L$6/100),F33="FORN",I33*(1+$L$7/100)),2) -> 330.64 | K33: 40780.5 | L33: 49596
A34: 49 | B34: 4.4 | C34: 5213401 | D34: SICRO | E34: PINTURA DE EIXO VIÁRIO SOBRE ASFALTO COM TINTA RETRORREFLETIVA A BASE DE RESINA ACRÍLICA COM MICROESFERAS DE VIDRO, APLICAÇÃO MECÂNICA COM DEMARCADORA AUTOPROPELIDA | F34: SERV | G34: M2 | H34: 1000 | I34: =VLOOKUP(A34,'CPU-SERV'!A:K,11,0) -> 27.24 | J34: =TRUNC(_xlfn.IFS(F34="SERV",I34*(1+$L$5/100),F34="SERV DIF",I34*(1+$L$6/100),F34="FORN",I34*(1+$L$7/100)),2) -> 33.12 | K34: 27240 | L34: 33120
A35: 51 | B35: 4.5 | C35: 5213405 | D35: SICRO | E35: PINTURA DE FAIXA DE PEDESTRE OU ZEBRADA TINTA RETRORREFLETIVA A BASE DE RESINA ACRÍLICA COM MICROESFERAS DE VIDRO, APLICAÇÃO MANUAL | F35: SERV | G35: M2 | H35: 1000 | I35: =VLOOKUP(A35,'CPU-SERV'!A:K,11,0) -> 40.78 | J35: =TRUNC(_xlfn.IFS(F35="SERV",I35*(1+$L$5/100),F35="SERV DIF",I35*(1+$L$6/100),F35="FORN",I35*(1+$L$7/100)),2) -> 49.59 | K35: 40780 | L35: 49590
A36: F | B36: 5 | E36: FORNECIMENTOS - MATERIAL ASFÁLTICO (BDI DIFERENCIADO) | L36: =SUM(L37:L42) -> 913452.76
A37: F1 | B37: 5.1 | C37: CPU.7 | D37: CODEVASF | E37: AQUISIÇÃO DE EMULSÃO ASFÁLTICA PARA IMPRIMAÇÃO (EAI) - EXCLUSIVE TRANSPORTE | F37: FORN | G37: T | H37: 28 | I37: =VLOOKUP(A37,'CPU-FORNEC'!A:J,9,0) -> 2723.1 | J37: =TRUNC(_xlfn.IFS(F37="SERV",I37*(1+$L$5/100),F37="SERV DIF",I37*(1+$L$6/100),F37="FORN",I37*(1+$L$7/100)),2) -> 3131.56 | K37: 76246.8 | L37: =TRUNC(H37*J37,2) -> 87683.68
A38: F2 | B38: 5.2 | C38: CPU.8 | D38: CODEVASF | E38: TRANSPORTE DE EMULSÃO ASFÁLTICA PARA IMPRIMAÇÃO (EAI) | F38: SERV DIF | G38: T | H38: 28 | I38: =VLOOKUP(A38,'CPU-FORNEC'!A:J,9,0) -> 527.96 | J38: =TRUNC(_xlfn.IFS(F38="SERV",I38*(1+$L$5/100),F38="SERV DIF",I38*(1+$L$6/100),F38="FORN",I38*(1+$L$7/100)),2) -> 607.15 | K38: 14782.88 | L38: 17000.2
A39: F3 | B39: 5.3 | C39: CPU.9 | D39: CODEVASF | E39: AQUISIÇÃO DE EMULSAO ASFALTICA CATIONICA RR-1C - EXCLUSIVE TRANSPORTE | F39: FORN | G39: T | H39: 9 | I39: =VLOOKUP(A39,'CPU-FORNEC'!A:J,9,0) -> 3456.95 | J39: =TRUNC(_xlfn.IFS(F39="SERV",I39*(1+$L$5/100),F39="SERV DIF",I39*(1+$L$6/100),F39="FORN",I39*(1+$L$7/100)),2) -> 3975.49 | K39: 31112.55 | L39: 35779.41
A40: F4 | B40: 5.4 | C40: CPU.10 | D40: CODEVASF | E40: TRANSPORTE DE EMULSÃO ASFÁLTICA CATIONICA RR-1C | F40: SERV DIF | G40: T | H40: 9 | I40: =VLOOKUP(A40,'CPU-FORNEC'!A:J,9,0) -> 590.29 | J40: =TRUNC(_xlfn.IFS(F40="SERV",I40*(1+$L$5/100),F40="SERV DIF",I40*(1+$L$6/100),F40="FORN",I40*(1+$L$7/100)),2) -> 678.83 | K40: 5312.61 | L40: 6109.47
A41: F5 | B41: 5.5 | C41: CPU.11 | D41: CODEVASF | E41: AQUISIÇÃO DE CONCRETO ASFÁLTICO DE PETRÓLEO - CAP 50/70 - EXCLUSIVE TRANSPORTE | F41: FORN | G41: T | H41: 125 | I41: =VLOOKUP(A41,'CPU-FORNEC'!A:J,9,0) -> 4496.77 | J41: =TRUNC(_xlfn.IFS(F41="SERV",I41*(1+$L$5/100),F41="SERV DIF",I41*(1+$L$6/100),F41="FORN",I41*(1+$L$7/100)),2) -> 5171.28 | K41: 562096.25 | L41: 646410
A42: F6 | B42: 5.6 | C42: CPU.12 | D42: CODEVASF | E42: TRANSPORTE DE CONCRETO ASFÁLTICO DE PETRÓLEO - CAP 50/70 | F42: SERV DIF | G42: T | H42: 125 | I42: =VLOOKUP(A42,'CPU-FORNEC'!A:J,9,0) -> 838.06 | J42: =TRUNC(_xlfn.IFS(F42="SERV",I42*(1+$L$5/100),F42="SERV DIF",I42*(1+$L$6/100),F42="FORN",I42*(1+$L$7/100)),2) -> 963.76 | K42: 104757.5 | L42: 120470
B43: TOTAL GERAL DA OBRA COM BDI | L43: =SUM(L10,L17,L24,L30,L36)+0.01 -> 2999960.99

Sheet CPU-SERV
A1: 1 | B1: 1ª/GRD | K1: =J37 -> 15816.96 | L1: Minas Gerais
B2: OBRA: | C2: PAVIMENTAÇÃO ASFÁLTICA EM CBUQ - VIAS URBANAS DIVERSAS (MATO VERDE / MG) | L2: Abril/2025
B3: Custo Unitário de Referência | E3: Minas Gerais | K3: QUANT.MATERIAL: | M3: =SUM(M20:M953) -> 0 | N3: =M3/(ORÇAMENTO!L43-ORÇAMENTO!L36) -> 0
E4: Abril/2025 | H4: Produção da equipe | I4: 0.5 | J4: =VLOOKUP(A1,ORÇAMENTO!$A$10:$L$43,7,1) -> GL
B5: CPU.1 | C5: MOBILIZAÇÃO E DESMOBILIZAÇÃO | I5: Valores em reais (R$)
B6: A - EQUIPAMENTOS | D6: Quantidade | E6: Utilização | G6: Custo Horário | J6: Custo
E7: Operativa | F7: Improdutiva | G7: Produtivo | H7: Improdutivo | J7: Horário Total
B8: E9687 | C8: Caminhão carroceria com capacidade de 5 t - 120 kW | D8: 8 | E8: 0.6 | F8: 0.4 | G8: 154.8269 | H8: 59.7199 | J8: =D8*(E8*G8+F8*H8) -> 934.2728 | L8: distancia = | M8: 220 | N8: MOC
B9: E9575 | C9: Caminhão basculante com caçamba estanque com capacidade de 14 m³ - 210 kW | D9: 12 | E9: 1 | F9: 0 | G9: 314.1607 | H9: 91.2661 | J9: =D9*(E9*G9+F9*H9) -> 3769.9284 | L9: Pá carregadeira | O9: 10.1 | P9: ton
H10: Custo horário total de equipamentos | J10: =SUM(J8:J9) -> 4704.2012 | L10: Motoniveladora | O10: 12.47 | P10: ton
B11: B - MÃO DE OBRA | D11: Quantidade | E11: Unidade | G11: Custo Horário | H11: Custo Horário Total | L11: Trator de pneus | O11: 2.8 | P11: ton
B12: P9824 | C12: Servente | D12: 8 | E12: h | G12: 21.4354 | J12: =D12*G12 -> 171.4832 | L12: Rolo Compactador | O12: 15.33 | P12: ton
J13: =D13*G13 -> 0 | L13: Grade de disco | O13: 1 | P13: ton
D14: Custo horário total de mão de obra | J14: =SUM(J12:J13) -> 171.4832 | L14: RETROESCAVADEIRA | O14: 6.67 | P14: ton
D15: Custo horário total de execução | J15: =J10+J14 -> 4875.6844
D16: Custo unitário de execução | J16: =J15/I4 -> 9751.3688 | L16: MOBILIZAÇÃO + DESMOBILIZAÇÃO DOS EQUIPTOS | O16: =SUM(O9:O15)*M8 -> 10641.4 | P16: ton.km
H17: Custo do FIC | J17: 0
H18: Custo do FIT | J18: 0
B19: C - MATERIAL | D19: Quantidade | E19: Unidade | G19: Preço Unitário | H19: Custo Unitário
B20: - | C20: 0 | E20: 0 | G20: 0 | J20: =D20*G20 -> 0
B21: - | C21: 0 | E21: 0 | G21: 0 | J21: =D21*G21 -> 0
D22: Custo unitário total de material | J22: =SUM(J20:J21) -> 0
B23: D - ATIVIDADES AUXILIARES | D23: Quantidade | E23: Unidade | G23: Custo Unitário | H23: Custo Unitário
B24: 5914640 | C24: Transporte com cavalo mecânico com semirreboque com capacidade de 32 t - rodovia pavimentada | D24: 10641.4 | E24: tkm | G24: 0.57 | J24: =D24*G24 -> 6065.598
B25: - | C25: 0 | D25: 0 | E25: 0 | G25: 0 | J25: =D25*G25 -> 0
D26: Custo total de atividades auxiliares | J26: =SUM(J24:J25) -> 6065.598
H27: Subtotal | J27: =J16+J22+J26+J17+J18 -> 15816.9668
B28: E - TEMPO FIXO | D28: Código | E28: Quantidade | F28: Unidade | H28: Custo Unitário | I28: Custo Unitário
B29: - | C29: 0 | D29: - | F29: 0 | H29: 0 | J29: =ROUNDDOWN(E29*H29,4) -> 0
B30: - | C30: 0 | D30: - | F30: 0 | H30: 0 | J30: =ROUNDDOWN(E30*H30,4) -> 0
D31: Custo unitário total de tempo fixo | J31: =SUM(J29:J30) -> 0
B32: F - MOMENTO DE TRANSPORTE | D32: Quantidade | E32: Unidade | F32: DMT | J32: Custo Unitário
F33: LN | G33: RP | H33: P
B34: - | C34: 0 | E34: tkm
B35: - | C35: 0 | E35: tkm
D36: Custo unitário total de transporte
F37: Custo unitário direto total | J37: =TRUNC(J27+J31,2) -> 15816.96
B38: Obs.
A40: =A1+1 -> 2 | B40: 1ª/GRD | K40: =J81 -> 197551.27
B41: OBRA: | C41: PAVIMENTAÇÃO ASFÁLTICA EM CBUQ - VIAS URBANAS DIVERSAS (MATO VERDE / MG)
B42: Custo Unitário de Referência | E42: Minas Gerais
E43: Abril/2025 | H43: Produção da equipe | I43: 0.125 | J43: =VLOOKUP(A40,ORÇAMENTO!$A$10:$L$43,7,1) -> GL | K43: 8 MESES
B44: CPU.2 | C44: ADMINISTRAÇÃO LOCAL | I44: Valores em reais (R$)
B45: A - EQUIPAMENTOS | D45: Quantidade | E45: Utilização | G45: Custo Horário | J45: Custo
E46: Operativa | F46: Improdutiva | G46: Produtivo | H46: Improdutivo | J46: Horário Total
B47: - | C47: 0 | G47: 0 | H47: 0 | J47: =D47*(E47*G47+F47*H47) -> 0
B48: - | C48: 0 | G48: 0 | H48: 0 | J48: =D48*(E48*G48+F48*H48) -> 0
H49: Custo horário total de equipamentos | J49: =SUM(J47:J48) -> 0
B50: B - MÃO DE OBRA | D50: Quantidade | E50: Unidade | G50: Custo Horário | H50: Custo Horário Total
B51: P9812 | C51: Engenheiro | D51: 0.2572304349 | E51: mês | G51: 26402.7353 | J51: =D51*G51 -> 6791.587083
B52: P9840 | C52: Encarregado geral | D52: 1 | E52: mês | G52: 10169.55307 | J52: =D52*G52 -> 10169.55307
B53: P9876 | C53: Técnico de segurança do trabalho | D53: 0.5 | E53: mês | G53: 5978.5158 | J53: 2989.2579
B54: P9858 | C54: Laboratorista | D54: 0.5 | E54: mês | G54: 4843.344225 | J54: 2421.672112
B55: P9806 | C55: Auxiliar administrativo | D55: 0.5 | E55: mês | G55: 3423.598425 | J55: 1711.799212
D56: Custo horário total de mão de obra | J56: =SUM(J51:J55) -> 24083.86938
D57: Custo horário total de execução | J57: =J49+J56 -> 24083.86938
D58: Custo unitário de execução | J58: =J57/I43 -> 192670.9551
H59: Custo do FIC | J59: -
H60: Custo do FIT | J60: -
B61: C - MATERIAL | D61: Quantidade | E61: Unidade | G61: Preço Unitário | H61: Custo Unitário
B62: - | C62: 0 | D62: 0 | E62: 0 | G62: 0 | J62: =D62*G62 -> 0
B63: - | C63: 0 | D63: 0 | E63: 0 | G63: 0 | J63: 0
D64: Custo unitário total de material | J64: =SUM(J62:J63) -> 0
B65: D - ATIVIDADES AUXILIARES | D65: Quantidade | E65: Unidade | G65: Custo Unitário | H65: Custo Unitário
B66: 14250 | C66: Energia Elétrica | D66: 480 | E66: kwh | G66: 1.14 | J66: =D66*G66 -> 547.2
B67: 44480 | C67: Tarifa A - Água e Esgoto | D67: 48 | E67: m³ | G67: 21.57 | J67: =D67*G67 -> 1035.36
B68: 5212560 | C68: Placa de advertência para sinalização de obras montada em suporte metálico móvel, lado 1,00 m - utilização de 600 ciclos - fornecimento, 01 implantação e 01 retirada diária | D68: 704 | E68: un.dia | G68: 3.89 | J68: =D68*G68 -> 2738.56
B69: Cotação | C69: Telefone | D69: 8 | E69: mês | G69: 69.9 | J69: =D69*G69 -> 559.2
D70: Custo total de atividades auxiliares | J70: =SUM(J66:J69) -> 4880.32
H71: Subtotal | J71: =J58+J64+J70 -> 197551.2751
B72: E - TEMPO FIXO | D72: Código | E72: Quantidade | F72: Unidade | H72: Custo Unitário | I72: Custo Unitário
B73: - | C73: 0 | D73: - | E73: 0 | F73: t | H73: 0 | J73: =ROUNDDOWN(E73*H73,4) -> 0
B74: - | C74: 0 | D74: - | E74: 0 | F74: t | H74: 0 | J74: =ROUNDDOWN(E74*H74,4) -> 0
D75: Custo unitário total de tempo fixo | J75: =SUM(J73:J74) -> 0
B76: F - MOMENTO DE TRANSPORTE | D76: Quantidade | E76: Unidade | F76: DMT | J76: Custo Unitário
F77: LN | G77: RP | H77: P
B78: - | C78: 0 | E78: tkm
B79: - | C79: 0 | E79: tkm
D80: Custo unitário total de transporte
F81: Custo unitário direto total | J81: =TRUNC(J71+J75,2) -> 197551.27
B82: Obs.
A84: =A40+1 -> 3 | B84: 1ª/GRD | K84: =J120 -> 19489.27
B85: OBRA: | C85: PAVIMENTAÇÃO ASFÁLTICA EM CBUQ - VIAS URBANAS DIVERSAS (MATO VERDE / MG)
B86: Custo Unitário de Referência | E86: Minas Gerais
E87: Abril/2025 | H87: Produção da equipe | I87: 1 | J87: =VLOOKUP(A84,ORÇAMENTO!$A$10:$L$43,7,1) -> GL
B88: CPU.3 | C88: CANTEIRO DE OBRAS | I88: Valores em reais (R$)
B89: A - EQUIPAMENTOS | D89: Quantidade | E89: Utilização | G89: Custo Horário | J89: Custo
E90: Operativa | F90: Improdutiva | G90: Produtivo | H90: Improdutivo | J90: Horário Total
B91: - | C91: 0 | G91: 0 | H91: 0 | J91: =D91*(E91*G91+F91*H91) -> 0
B92: - | C92: 0 | G92: 0 | H92: 0 | J92: =D92*(E92*G92+F92*H92) -> 0
H93: Custo horário total de equipamentos | J93: =SUM(J91:J92) -> 0
B94: B - MÃO DE OBRA | D94: Quantidade | E94: Unidade | G94: Custo Horário | H94: Custo Horário Total
B95: P9824 | C95: Servente | D95: 16 | E95: h | G95: 21.4354 | J95: =D95*G95 -> 342.9664
B96: P9808 | C96: Carpinteiro | D96: 16 | E96: h | G96: 26.8814 | J96: =D96*G96 -> 430.1024
D97: Custo horário total de mão de obra | J97: =SUM(J95:J96) -> 773.0688
D98: Custo horário total de execução | J98: =J93+J97 -> 773.0688
D99: Custo unitário de execução | J99: =J98/I87 -> 773.0688
H100: Custo do FIC | J100: -
H101: Custo do FIT | J101: -
B102: C - MATERIAL | D102: Quantidade | E102: Unidade | G102: Preço Unitário | H102: Custo Unitário
B103: M0053 | C103: Tela plástica em polipropileno na cor laranja para tapume - L = 1,2 m | D103: 100 | E103: m | G103: 1.7621 | J103: =D103*G103 -> 176.21
B104: - | C104: 0 | D104: 0 | E104: 0 | G104: 0 | J104: =D104*G104 -> 0
D105: Custo unitário total de material | J105: =SUM(J103:J104) -> 176.21
B106: D - ATIVIDADES AUXILIARES | D106: Quantidade | E106: Unidade | G106: Custo Unitário | H106: Custo Unitário
B107: 10775 | C107: Locação de container 2,30 X 6,00 m, alt. 2,50 m, com 1 sanitário, para escritório, completo, sem divisórias internas | D107: 8 | E107: mês | G107: 1030 | J107: =D107*G107 -> 8240
B108: 10779 | C108: Locação de container 2,30 X 4,30 m, alt. 2,50 M, p/ sanitário, c/ 5 bacias, 1 lavatório e 4 mictórios | D108: 8 | E108: mês | G108: 1287.5 | J108: =D108*G108 -> 10300
D109: Custo total de atividades auxiliares | J109: =SUM(J107:J108) -> 18540
H110: Subtotal | J110: =J99+J105+J109 -> 19489.2788
B111: E - TEMPO FIXO | D111: Código | E111: Quantidade | F111: Unidade | H111: Custo Unitário | I111: Custo Unitário
B112: - | C112: 0 | D112: - | E112: 0 | F112: t | H112: 0 | J112: =ROUNDDOWN(E112*H112,4) -> 0
B113: - | C113: 0 | D113: - | E113: 0 | F113: t | H113: 0 | J113: =ROUNDDOWN(E113*H113,4) -> 0
D114: Custo unitário total de tempo fixo | J114: =SUM(J112:J113) -> 0
B115: F - MOMENTO DE TRANSPORTE | D115: Quantidade | E115: Unidade | F115: DMT | J115: Custo Unitário
F116: LN | G116: RP | H116: P
B117: - | C117: 0 | D117: 0 | E117: tkm
B118: - | C118: 0 | D118: 0 | E118: tkm
D119: Custo unitário total de transporte
F120: Custo unitário direto total | J120: =TRUNC(J110+J114,2) -> 19489.27
B121: Obs.
A123: =A84+1 -> 4 | B123: 1ª/GRD | K123: =J161 -> 550.64
B124: OBRA: | C124: PAVIMENTAÇÃO ASFÁLTICA EM CBUQ - VIAS URBANAS DIVERSAS (MATO VERDE / MG)
B125: Custo Unitário de Referência | E125: Minas Gerais
E126: Abril/2025 | H126: Produção da equipe | I126: 1 | J126: =VLOOKUP(A123,ORÇAMENTO!$A$10:$L$43,7,1) -> M2
B127: 103689 | C127: PLACA DE OBRA EM CHAPA DE AÇO GALVANIZADO | I127: Valores em reais (R$)
B128: A - EQUIPAMENTOS | D128: Quantidade | E128: Utilização | G128: Custo Horário | J128: Custo
E129: Operativa | F129: Improdutiva | G129: Produtivo | H129: Improdutivo | J129: Horário Total
B130: - | C130: 0 | G130: 0 | H130: 0 | J130: =D130*(E130*G130+F130*H130) -> 0
B131: - | C131: 0 | G131: 0 | H131: 0 | J131: =D131*(E131*G131+F131*H131) -> 0
H132: Custo horário total de equipamentos | J132: =SUM(J130:J131) -> 0
B133: B - MÃO DE OBRA | D133: Quantidade | E133: Unidade | G133: Custo Horário | H133: Custo Horário Total
B134: P9824 | C134: Servente | D134: 1.1186 | E134: h | G134: 21.4354 | J134: =D134*G134 -> 23.97763844
B135: P9808 | C135: Carpinteiro | D135: 0.3729 | E135: h | G135: 26.8814 | J135: =D135*G135 -> 10.02407406
D136: Custo horário total de mão de obra | J136: =SUM(J134:J135) -> 34.0017125
D137: Custo horário total de execução | J137: =J132+J136 -> 34.0017125
D138: Custo unitário de execução | J138: =J137/I126 -> 34.0017125
H139: Custo do FIC | J139: -
H140: Custo do FIT | J140: -
B141: C - MATERIAL | D141: Quantidade | E141: Unidade | G141: Preço Unitário | H141: Custo Unitário
B142: M1358 | C142: Sarrafo em madeira de terceira - E = 2,5 cm e L = 5 cm | D142: 6.4166 | E142: m | G142: 2.0291 | J142: =D142*G142 -> 13.01992306
B143: M1205 | C143: Prego de ferro | D143: 0.0245 | E143: kg | G143: 16.7718 | J143: =D143*G143 -> 0.4109091
B144: M0998 | C144: Madeira estrutural de eucalipto | D144: 0.022608 | E144: m³ | G144: 2685.3184 | J144: =D144*G144 -> 60.70967839
B145: 4813 | C145: Placa de obra (para construção civil) em chapa galvanizada *N. 22*, adesivada, de *2,4 X 1,2* m (sem postes para fixação) | D145: 1 | E145: m² | G145: 442.5 | J145: 442.5
D146: Custo unitário total de material | J146: =SUM(J142:J145) -> 516.6405105
B147: D - ATIVIDADES AUXILIARES | D147: Quantidade | E147: Unidade | G147: Custo Unitário | H147: Custo Unitário
B148: - | C148: 0 | D148: 0 | E148: 0 | G148: 0 | J148: =D148*G148 -> 0
B149: - | C149: 0 | D149: 0 | E149: 0 | G149: 0 | J149: =D149*G149 -> 0
D150: Custo total de atividades auxiliares | J150: =SUM(J148:J149) -> 0
H151: Subtotal | J151: =J138+J146+J150 -> 550.642223
B152: E - TEMPO FIXO | D152: Código | E152: Quantidade | F152: Unidade | H152: Custo Unitário | I152: Custo Unitário
B153: - | C153: 0 | D153: - | E153: 0 | F153: t | H153: 0 | J153: =ROUNDDOWN(E153*H153,4) -> 0
B154: - | C154: 0 | D154: - | E154: 0 | F154: t | H154: 0 | J154: =ROUNDDOWN(E154*H154,4) -> 0
D155: Custo unitário total de tempo fixo | J155: =SUM(J153:J154) -> 0
B156: F - MOMENTO DE TRANSPORTE | D156: Quantidade | E156: Unidade | F156: DMT | J156: Custo Unitário
F157: LN | G157: RP | H157: P
B158: - | C158: 0 | D158: 0 | E158: tkm
B159: - | C159: 0 | D159: 0 | E159: tkm
D160: Custo unitário total de transporte
F161: Custo unitário direto total | J161: =TRUNC(J151+J155,2) -> 550.64
B162: Obs.
A164: 5 | B164: 1ª/GRD | K164: =J208 -> 4264.15
B165: OBRA: | C165: PAVIMENTAÇÃO EM BLOQUETE SEXTAVADOS - RUAS DIVERSAS - JOSENÓPOLIS / MG
B166: Custo Unitário de Referência | E166: Minas Gerais
E167: Abril/2025 | H167: Produção da equipe | I167: 1 | J167: =VLOOKUP(A164,ORÇAMENTO!$A$10:$L$43,7,1) -> MÊS
B168: CPU. 4 | C168: VEÍCULO PARA A FISCALIZAÇÃO, MÁXIMO 02 ANOS DE USO OU 50.000KM, PREFERENCIALMENTE NA COR BRANCA, COM IDENTIFICAÇÃO CONFORME ESPECIFICAÇÕES DA CODEVASF, INCLUSIVE COMBUSTÍVEL, MANUTENÇÃO, SEGURO E IMPOSTOS - CONFORME ESPECIFICAÇÕES | I168: Valores em reais (R$)
B169: A - EQUIPAMENTOS | D169: Quantidade | E169: Utilização | G169: Custo Horário | J169: Custo
E170: Operativa | F170: Improdutiva | G170: Produtivo | H170: Improdutivo | J170: Horário Total
B171: - | C171: 0 | G171: 0 | H171: 0 | J171: =D171*(E171*G171+F171*H171) -> 0
B172: - | C172: 0 | G172: 0 | H172: 0 | J172: =D172*(E172*G172+F172*H172) -> 0
H173: Custo horário total de equipamentos | J173: =SUM(J171:J172) -> 0
B174: B - MÃO DE OBRA | D174: Quantidade | E174: Unidade | G174: Custo Horário | H174: Custo Horário Total
B175: - | C175: 0 | E175: 0 | G175: 0 | J175: =D175*G175 -> 0
B176: - | C176: 0 | E176: 0 | G176: 0 | J176: 0
D177: Custo horário total de mão de obra | J177: =SUM(J175:J176) -> 0
D178: Custo horário total de execução | J178: =J173+J177 -> 0
D179: Custo unitário de execução | J179: =J178/I167 -> 0
H180: Custo do FIC | J180: -
H181: Custo do FIT | J181: -
B182: C - MATERIAL | D182: Quantidade | E182: Unidade | G182: Preço Unitário | H182: Custo Unitário
B183: - | C183: 0 | E183: 0 | G183: 0 | J183: =D183*G183 -> 0
B184: - | C184: 0 | E184: 0 | G184: 0 | J184: 0
D185: Custo unitário total de material | J185: =SUM(J183:J184) -> 0
B186: D - ATIVIDADES AUXILIARES | D186: Quantidade | E186: Unidade | G186: Custo Unitário | H186: Custo Unitário
B187: - | C187: Depreciação | D187: 1 | E187: vb | G187: 692.6666667 | J187: =D187*G187 -> 692.6666667
B188: - | C188: Oportunidade de Capital | D188: 1 | E188: vb | G188: 510.84 | J188: 510.84
B189: - | C189: Impostos e Licenciamento | D189: 1 | E189: vb | G189: 346.33 | J189: 346.33
B190: - | C190: Seguro Total | D190: 1 | E190: vb | G190: 281.58 | J190: 281.58
B191: - | C191: Combustível | D191: 1 | E191: vb | G191: 1287.86 | J191: 1287.86
B192: - | C192: Manutenções Preventivas | D192: 1 | E192: vb | G192: 254.02 | J192: 254.02
B193: - | C193: Limpeza | D193: 1 | E193: vb | G193: 100 | J193: 100
B194: - | C194: Pneus | D194: 1 | E194: vb | G194: 115.18 | J194: 115.18
B195: - | C195: Peças | D195: 1 | E195: vb | G195: 77.22 | J195: 77.22
B196: - | C196: Manutenção Corretiva (%) | D196: 1 | E196: vb | G196: 598.46 | J196: 598.46
D197: Custo total de atividades auxiliares | J197: =SUM(J187:J196) -> 4264.156667
H198: Subtotal | J198: =J179+J185+J197 -> 4264.156667
B199: E - TEMPO FIXO | D199: Código | E199: Quantidade | F199: Unidade | H199: Custo Unitário | I199: Custo Unitário
B200: - | C200: 0 | D200: - | F200: 0 | H200: 0 | J200: =ROUNDDOWN(E200*H200,4) -> 0
B201: - | C201: 0 | D201: - | F201: 0 | H201: 0 | J201: =ROUNDDOWN(E201*H201,4) -> 0
D202: Custo unitário total de tempo fixo | J202: =SUM(J200:J201) -> 0
B203: F - MOMENTO DE TRANSPORTE | D203: Quantidade | E203: Unidade | F203: DMT | J203: Custo Unitário
F204: LN | G204: RP | H204: P
... 730 more rows

Sheet CPU-FORNEC
A1: 1 | B1: CODEVASF | E1: COMPOSIÇÃO DE PREÇO UNITÁRIO | I1: =H24 -> 0 | J1: =H26 -> 0 | K1: BDI CALCULADO: | M1: =ORÇAMENTO!L6 -> 15
B2: OBRA: | C2: PAVIMENTAÇÃO ASFÁLTICA EM CBUQ - VIAS URBANAS DIVERSAS (MATO VERDE / MG) | G2: DATA: | H2: =ORÇAMENTO!C6 -> AGOSTO / 2025 | K2: BDI DIFERENCIADO: | M2: ='BDI FORN'!D31/100 -> 0.15
B3: SERVIÇO: | C3: CPU.1 | E3: Referência: | F3: SICRO | G3: UNIDADE: | H3: =VLOOKUP(A1,ORÇAMENTO!A11:L31,5) -> MOBILIZAÇÃO E DESMOBILIZAÇÃO
B5: TIPO ITEM | C5: CODIGO ITEM | D5: DESCRIÇÃO ITEM | E5: UNIDADE ITEM | F5: COEFICIENTE | G5: PRECO UNITARIO | H5: CUSTO TOTAL | J5: distancia = | K5: 90 | L5: B.DESPACHO
B6: EQUIPAMENTOS | J6: Pá carregadeira | M6: 10.1 | N6: ton
C7: E9001 | D7: E9001 | E7: E9001 | G7: E9001
B10: MÃO DE OBRA
B14: MATERIAIS
H17: =ROUNDDOWN(F17*G17,2) -> 0 | J17: Motoniveladora | M17: 12.47 | N17: ton
B18: ATIVIDADES AUXILIARES | J18: Trator de pneus | M18: 2.8 | N18: ton
H19: =ROUNDDOWN(F19*G19,2) -> 0
H20: 0
H21: 0
H22: =ROUNDDOWN(F22*G22,2) -> 0 | J22: Rolo Compactador | M22: 15.33 | N22: ton
B23: PRODUÇÃO DA EQUIPE | E23: 1 | F23: CUSTO | H23: =SUM(H6:H22) -> 0 | J23: Grade de disco | M23: 1 | N23: ton
B24: TOTAL | H24: =H23/E23 -> 0 | I24: OK | J24: RETROESCAVADEIRA | M24: 6.67 | N24: ton
B25: BDI % | H25: =1+$M$1 -> 16
B26: TOTAL DO SERVIÇO - R$ | H26: =ROUND(H24*H25,2) -> 0
A28: F1 | B28: CODEVASF | E28: COMPOSIÇÃO DE PREÇO UNITÁRIO | I28: =H35 -> 2723.1 | J28: =H37 -> 3131.57
B29: OBRA: | C29: PAVIMENTAÇÃO ASFÁLTICA EM CBUQ - VIAS URBANAS DIVERSAS (MATO VERDE / MG) | G29: DATA: | H29: =$H$2 -> AGOSTO / 2025
B30: SERVIÇO: | C30: AQUISIÇÃO DE EMULSÃO ASFÁLTICA PARA IMPRIMAÇÃO (EAI) - EXCLUSIVE TRANSPORTE | E30: SEINFRA | F30: CPU.7 | G30: UNIDADE: | H30: =VLOOKUP(A28,ORÇAMENTO!$A$11:$L$50,7) -> T
B32: TIPO ITEM | C32: CODIGO ITEM | D32: DESCRIÇÃO ITEM | E32: UNIDADE ITEM | F32: COEFICIENTE | G32: PRECO UNITARIO | H32: CUSTO TOTAL
B33: INSUMO | C33: ANP | D33: EMULSÃO ASFÁLTICA PARA SERVIÇO DE IMPRIMAÇÃO (MEMÓRIA EM ANEXO) | E33: T | F33: 1 | G33: 2723.101315 | H33: =ROUNDDOWN(F33*G33,2) -> 2723.1
B34: PRODUÇÃO DA EQUIPE | E34: 1 | F34: CUSTO | H34: =SUM(H33:H33) -> 2723.1
B35: TOTAL | H35: =H34/E34 -> 2723.1
B36: BDI % | H36: =1+$M$2 -> 1.15
B37: TOTAL DO SERVIÇO - R$ | H37: =ROUND(H35*H36,2) -> 3131.57 | I37: OK
A39: F2 | B39: CODEVASF | E39: COMPOSIÇÃO DE PREÇO UNITÁRIO | I39: =H46 -> 527.96 | J39: =H48 -> 607.15
B40: OBRA: | C40: PAVIMENTAÇÃO ASFÁLTICA EM CBUQ - VIAS URBANAS DIVERSAS (MATO VERDE / MG) | G40: DATA: | H40: =$H$2 -> AGOSTO / 2025
B41: SERVIÇO: | C41: TRANSPORTE DE EMULSÃO ASFÁLTICA PARA IMPRIMAÇÃO (EAI) | E41: SEINFRA | F41: CPU.8 | G41: UNIDADE: | H41: =VLOOKUP(A39,ORÇAMENTO!$A$11:$L$50,7) -> T
B43: TIPO ITEM | C43: CODIGO ITEM | D43: DESCRIÇÃO ITEM | E43: UNIDADE ITEM | F43: COEFICIENTE | G43: PRECO UNITARIO | H43: CUSTO TOTAL
B44: INSUMO | C44: - | D44: TRANSPORTE DE EMULSÃO ASFÁLTICA PARA IMPRIMAÇÃO (EAI), INCLUINDO CUSTO TOTAL DO TRANSPORTE (COMBUSTÍVEL, PEDÁGIOS, ETC.) E ICMS - MEMÓRIA ANEXA | E44: T | F44: 1 | G44: 527.9671429 | H44: =ROUNDDOWN(F44*G44,2) -> 527.96
B45: PRODUÇÃO DA EQUIPE | E45: 1 | F45: CUSTO | H45: =SUM(H44:H44) -> 527.96
B46: TOTAL | H46: =H45/E45 -> 527.96
B47: BDI % | H47: =1+$M$2 -> 1.15
B48: TOTAL DO SERVIÇO - R$ | H48: =ROUND(H46*H47,2) -> 607.15 | I48: OK
A50: F3 | B50: CODEVASF | E50: COMPOSIÇÃO DE PREÇO UNITÁRIO | I50: =H57 -> 3456.95 | J50: =H59 -> 3975.49
B51: OBRA: | C51: PAVIMENTAÇÃO ASFÁLTICA EM CBUQ - VIAS URBANAS DIVERSAS (MATO VERDE / MG) | G51: DATA: | H51: =$H$2 -> AGOSTO / 2025
B52: SERVIÇO: | C52: AQUISIÇÃO DE EMULSAO ASFALTICA CATIONICA RR-1C - EXCLUSIVE TRANSPORTE | E52: SINAPI | F52: CPU.9 | G52: UNIDADE: | H52: =VLOOKUP(A50,ORÇAMENTO!$A$11:$L$50,7) -> T
B54: TIPO ITEM | C54: CODIGO ITEM | D54: DESCRIÇÃO ITEM | E54: UNIDADE ITEM | F54: COEFICIENTE | G54: PRECO UNITARIO | H54: CUSTO TOTAL
B55: INSUMO | C55: ANP | D55: EMULSÃO ASFÁLTICA CATIÔNICA RR-1C(MEMÓRIA EM ANEXO) | E55: T | F55: 1 | G55: 3456.956226 | H55: =ROUNDDOWN(F55*G55,2) -> 3456.95
B56: PRODUÇÃO DA EQUIPE | E56: 1 | F56: CUSTO | H56: =SUM(H55:H55) -> 3456.95
B57: TOTAL | H57: =H56/E56 -> 3456.95 | I57: OK
B58: BDI % | H58: =1+$M$2 -> 1.15
B59: TOTAL DO SERVIÇO - R$ | H59: =ROUND(H57*H58,2) -> 3975.49
A61: F4 | B61: CODEVASF | E61: COMPOSIÇÃO DE PREÇO UNITÁRIO | I61: =H68 -> 590.29 | J61: =H70 -> 678.83
B62: OBRA: | C62: PAVIMENTAÇÃO ASFÁLTICA EM CBUQ - VIAS URBANAS DIVERSAS (MATO VERDE / MG) | G62: DATA: | H62: =$H$2 -> AGOSTO / 2025
B63: SERVIÇO: | C63: TRANSPORTE DE EMULSÃO ASFÁLTICA CATIONICA RR-1C | E63: SINAPI | F63: CPU.10 | G63: UNIDADE: | H63: =VLOOKUP(A61,ORÇAMENTO!$A$11:$L$50,7) -> T
B65: TIPO ITEM | C65: CODIGO ITEM | D65: DESCRIÇÃO ITEM | E65: UNIDADE ITEM | F65: COEFICIENTE | G65: PRECO UNITARIO | H65: CUSTO TOTAL
B66: INSUMO | C66: - | D66: TRANSPORTE DE EMULSÃO ASFÁLTICA CATIONICA TIPO RR-1C, INCLUINDO CUSTO TOTAL DO TRANSPORTE (COMBUSTÍVEL, PEDÁGIOS, ETC.) E ICMS - MEMÓRIA ANEXA | E66: T | F66: 1 | G66: 590.29 | H66: =ROUNDDOWN(F66*G66,2) -> 590.29
B67: PRODUÇÃO DA EQUIPE | E67: 1 | F67: CUSTO | H67: =SUM(H66:H66) -> 590.29
B68: TOTAL | H68: =H67/E67 -> 590.29 | I68: OK
B69: BDI % | H69: =1+$M$2 -> 1.15
B70: TOTAL DO SERVIÇO - R$ | H70: =ROUND(H68*H69,2) -> 678.83
A72: F5 | B72: CODEVASF | E72: COMPOSIÇÃO DE PREÇO UNITÁRIO | I72: =H79 -> 4496.77 | J72: =H81 -> 5171.29
B73: OBRA: | C73: PAVIMENTAÇÃO ASFÁLTICA EM CBUQ - VIAS URBANAS DIVERSAS (MATO VERDE / MG) | G73: DATA: | H73: =$H$2 -> AGOSTO / 2025
B74: SERVIÇO: | C74: AQUISIÇÃO DE CONCRETO ASFÁLTICO DE PETRÓLEO - CAP 50/70 - EXCLUSIVE TRANSPORTE | E74: SINAPI | F74: CPU.11 | G74: UNIDADE: | H74: =VLOOKUP(A72,ORÇAMENTO!$A$11:$L$50,7) -> T
B76: TIPO ITEM | C76: CODIGO ITEM | D76: DESCRIÇÃO ITEM | E76: UNIDADE ITEM | F76: COEFICIENTE | G76: PRECO UNITARIO | H76: CUSTO TOTAL
B77: INSUMO | C77: 1518 | D77: CIMENTOS ASFÁLTICO DE PETRÓLEO TIPO CAP 50/70 (MEMÓRIA EM ANEXO) | E77: T | F77: 1 | G77: 4496.770002 | H77: =ROUNDDOWN(F77*G77,2) -> 4496.77
B78: PRODUÇÃO DA EQUIPE | E78: 1 | F78: CUSTO | H78: =SUM(H77:H77) -> 4496.77
B79: TOTAL | H79: =H78/E78 -> 4496.77
B80: BDI % | H80: =1+$M$2 -> 1.15
B81: TOTAL DO SERVIÇO - R$ | H81: =ROUND(H79*H80,2) -> 5171.29
A83: F6 | B83: CODEVASF | E83: COMPOSIÇÃO DE PREÇO UNITÁRIO | I83: =H90 -> 838.06 | J83: =H92 -> 963.77
B84: OBRA: | C84: PAVIMENTAÇÃO ASFÁLTICA EM CBUQ - VIAS URBANAS DIVERSAS (MATO VERDE / MG) | G84: DATA: | H84: =$H$2 -> AGOSTO / 2025
B85: SERVIÇO: | C85: TRANSPORTE DE CONCRETO ASFÁLTICO DE PETRÓLEO - CAP 50/70 | E85: SINAPI | F85: CPU.12 | G85: UNIDADE: | H85: =VLOOKUP(A83,ORÇAMENTO!$A$11:$L$50,7) -> T
B87: TIPO ITEM | C87: CODIGO ITEM | D87: DESCRIÇÃO ITEM | E87: UNIDADE ITEM | F87: COEFICIENTE | G87: PRECO UNITARIO | H87: CUSTO TOTAL
B88: INSUMO | C88: - | D88: TRANSPORTE DE CIMENTO ASFÁLTICO DE PETRÓLEO TIPO CAP 50-70, INCLUINDO CUSTO TOTAL DO TRANSPORTE (COMBUSTÍVEL, PEDÁGIOS, ETC.) E ICMS - MEMÓRIA ANEXA | E88: T | F88: 1 | G88: 838.062 | H88: =ROUNDDOWN(F88*G88,2) -> 838.06
B89: PRODUÇÃO DA EQUIPE | E89: 1 | F89: CUSTO | H89: =SUM(H88:H88) -> 838.06
B90: TOTAL | H90: =H89/E89 -> 838.06
B91: BDI % | H91: =1+$M$2 -> 1.15
B92: TOTAL DO SERVIÇO - R$ | H92: =ROUND(H90*H91,2) -> 963.77

Sheet AUX-VEIC.
B2: CÁLCULO DO CUSTO POR MÊS DE VEÍCULOS
B3: Veículo: Polo TSI, Onix Turbo, Argo 1.3, HB-20 Turbo | D3: Data: | E3: 2025-07-28
B4: DADOS ELEMENTARES DO VEÍCULO
B5: Dados Básicos | C5: Preço (R$) | D5: Quantidade | E5: Vida Útil
B6: Quilometragem média mensal | D6: 3000
B7: Valor de Aquisição (VA) | C7: 103900
B8: Taxa de Juros (i)% | D8: 14.75
B9: IPVA e Seguro Obrigatório (4%) | C9: 4156
B10: Lavagem | C10: 50 | D10: 2
B11: Pneus | C11: 479.9 | D11: 4 | E11: 50000
B12: Combustível | C12: 6.01 | D12: 14
B13: Óleo Lubrificante + Filtros (revisão) | C13: 846.744 | D13: 1 | E13: 10000
B14: Seguro Total Anual | C14: 3378.94
B15: Jogo de Amortecedores | C15: 1287 | E15: 50000
B16: Coeficiente de Manutenção | D16: 4.8e-06
B17: Motorista | C17: 3038.274018 | D17: 1
B18: CÁLCULO DO CUSTO POR MÊS
B19: DEPRECIAÇÃO | C19: D = (VA-0,60xVA) / 12 x 5 | E19: 692.6666667
B20: JUROS | C20: J = (VA-0,60xVA) x i / 12 | E20: 510.84
B21: LICENCIAMENTO | C21: L = (IPVA=SEG.OBRIG.)/12 | E21: 346.33
B22: SEGURO TOTAL | C22: ST = SEGURO ANUAL/12 | E22: 281.58
B23: COMBUSTÍVEL | C23: OD = (Comb./Consu)x Km.mês | E23: 1287.86
B24: ÓLEO LUBRIFICANTE | C24: OL = ((Ol. X Quant)/Vida Útil)xKm.mês) | E24: 254.02
B25: LAVAGEM | C25: LL = Preço Lavagem x Quantidade | E25: 100
B26: PNEUS | C26: P = ((P. PneusxQuant)/Vida Útil)xkm.mês) | E26: 115.18
B27: AMORTECEDORES | C27: AM = (P. Amort/Vida Útil)xkm.mês | E27: 77.22
B28: MANUTENÇÃO | C28: M = (VA-VPxK)xkm.mês | E28: 598.46
B29: MOTORISTA | C29: MOT = SALÁRIO+LEIS SOCIAIS | E29: 5276.87
B30: CUSTO POR MÊS | C30: SEM MOTORISTA | E30: 4264.156667
C31: COM MOTORISTA | E31: 9541.026667

Sheet BDI SERV
B1: DETALHAMENTO DO BDI - SERVIÇOS
B4: Item | C4: Descrição dos Serviços | D4: % - PV | E4: % - CD
B6: 1 | C6: ADMINISTRAÇÃO CENTRAL | E6: =SUM(E7:E9) -> 4.01
B7: 1.1 | C7: ESCRITÓRIO CENTRAL | E7: 4.01
B8: 1.2 | C8: VIAGENS
B9: 1.3 | C9: OUTROS
B11: 2 | C11: IMPOSTOS E TAXAS | D11: =SUM(D12:D15) -> 5.75 | E11: =SUM(E12:E15) -> 0
B12: 2.1 | C12: ISS - Proposta | D12: =D34*100 -> 2.1
B13: 2.2 | C13: PIS | D13: 0.65
B14: 2.3 | C14: Cofins | D14: 3
B15: 2.4 | C15: Contribuição Previdenciaria (CPRB)
B17: 3 | C17: TAXA DE RISCO | E17: =SUM(E18:E20) -> 0.96
B18: 3.1 | C18: SEGURO | E18: 0.2
B19: 3.2 | C19: RISCO | E19: 0.56
B20: 3.3 | C20: GARANTIA | E20: 0.2
B22: 4 | C22: DESPESAS FINANCEIRAS | E22: 1.11
B24: 5 | C24: LUCRO | E24: 8
B26: BDI APRESENTADO: | E26: =IF($D$41=$C$43,$D$43,IF($D$41=$C$44,$D$44,IF($D$41=$C$44,$D$44,IF($D$41=$C$45,$D$45,0)))) -> 21.62
C28: Legislação Municipal: | D28: Lei Complementar nº 003/2005
C29: Município: | D29: Mato Verde
C30: Alíquota ISSQN: | D30: 0.03 | E30: Município
C31: Base de Cálculo: | D31: Dedução - Material | E31: Art.106 - § 2º
C32: Valor Serviço: | D32: 1717415.62
C33: Dedução - Material (estimado): | D33: =0.3*D32 -> 515224.686 | E33: =D33/D32 -> 0.3
C34: ISSQN BDI: | D34: =IF(D32="",0,ROUND(IF(D31=D49,((1-(D33/D32))*D30),D30*D31),4)) -> 0.021 | E34: (*)
A36: Acórdão nº 2.622/2013 - TCU Plenário
A37: BDI = ARRED((((((1+(AC+TR)/100)*(1+DF/100)*(1+L/100))/(1-IMP/100))-1)*100);2)
B39: (*) É obrigação da licitante a verificação da Legislação Tributária vigente no município, bem como o cálculo dos valores totais de serviços e materiais estimados, para apresentação de sua proposta.
C41: Forma de Cálculo do BDI: | D41: BDI - Acórdão nº 2.622/2013 - TCU
C43: BDI - Digitado | D43: =ROUND(E6+E11+E17+E22+E24,2) -> 14.08
C44: BDI - Calculado | D44: =ROUND((((1+(E6/100+E22/100+E17/100))/(1-(D11/100+E24/100)))-1)*100,2) -> 22.99
C45: BDI - Acórdão nº 2.622/2013 - TCU | D45: =ROUND((((((1+(E6+E17)/100)*(1+E22/100)*(1+E24/100))/(1-D11/100))-1)*100),2) -> 21.62
D49: Dedução - Material | E49: Município
D50: 0.1 | E50: Simples Nacional
D51: 0.2 | E51: Municípios Indefinidos
D52: 0.3
D53: 0.4
D54: 0.5
D55: 0.6
D56: 0.7
D57: 0.8
D58: 0.9
D59: 1
D60: =E31 -> Art.106 - § 2º

Sheet BDI FORN
B1: DETALHAMENTO DO BDI - FORNECIMENTO (MATERIAL ASFÁLTICO)
B4: Item | C4: Descrição dos Serviços | D4: % | E4: %
D5: PV | E5: CD
B7: 1 | C7: ADMINISTRAÇÃO CENTRAL | E7: 3.45
B8: 1.1 | C8: ESCRITÓRIO CENTRAL
B9: 1.2 | C9: VIAGENS
B10: 1.3 | C10: OUTROS
B12: 2 | C12: IMPOSTOS E TAXAS | D12: =SUM(D13:D16) -> 3.65 | E12: =SUM(E13:E16) -> 4.56
B13: 2.1 | C13: ISS (*) | E13: =ROUND(D13*1.2515,2) -> 0
B14: 2.2 | C14: PIS | D14: 0.65 | E14: =ROUND(D14*1.2515,2) -> 0.81
B15: 2.3 | C15: Cofins | D15: 3 | E15: =ROUND(D15*1.2515,2) -> 3.75
B16: 2.4 | C16: CONTRIBUIÇÃO PREVIDENCIÁRIA SOBRE A RENDA BRUTA | D16: 0 | E16: =ROUND(D16*1.2515,2) -> 0
B18: 3 | C18: TAXA DE RISCO | E18: =SUM(E19:E22) -> 1.08
B19: 3.1 | C19: SEGURO | E19: 0.24
B20: 3.2 | C20: RISCO | E20: 0.6
B21: 3.3 | C21: GARANTIA | E21: 0.24
B23: 4 | C23: DESPESAS FINANCEIRAS | E23: 0.85
B25: 5 | C25: LUCRO | E25: 5.11
C27: BDI - CALCULADO | E27: =ROUND((((1+(E7+E18)/100)*(1+E23/100)*(1+E25/100)/(1-D12/100)-1)*100),2) -> 15
A29: BDI = ((1+((AC+S+R+G)/100))x(1+DF/100)x(1+L/100)/(1-I/100)-1)*100
B31: BDI (CALCULADO): | D31: =ROUND((((1+((E7+E18)/100))*(1+E23/100)*(1+E25/100))/(1-D12/100)-1)*100,2) -> 15 | E31: %
A37: BDI EM CONFORMIDADE COM OS ACÓRDÃOS Nº 2369/2011 e ACÓRDÃO Nº 2.622/2013 - TCU - PLENÁRIO

Sheet CRONOGRAMA
B1: CRONOGRAMA FÍSICO-FINANCEIRO
B2: OBRA: | C2: =ORÇAMENTO!C5 -> PAVIMENTAÇÃO ASFÁLTICA EM CBUQ - VIAS URBANAS DIVERSAS (MATO VERDE / MG) | F2: VALOR: | G2: =ORÇAMENTO!L43 -> 2999960.99
F3: PRAZO: | G3: 240 DIAS
B5: ITEM | C5: ETAPAS/DESCRIÇAO | D5: FISICO/ FINANCEIRO | E5: TOTAL ETAPAS | F5: MÊS 1 | G5: MÊS 2 | H5: MÊS 3 | I5: MÊS 4 | J5: MÊS 5 | K5: MÊS 6 | L5: MÊS 7 | M5: MÊS 8 | N5: TOTAL
A6: A | B6: =VLOOKUP(A6,ORÇAMENTO!$A$10:$L$43,2) -> 1 | C6: =VLOOKUP(A6,ORÇAMENTO!$A$10:$L$43,5) -> SERVIÇOS PRELIMINARES | D6: FISICO | E6: =ROUND(E7/$G$2,4) -> 0.1178 | F6: 0.4 | G6: 0.1 | H6: 0.1 | I6: 0.1 | J6: 0.1 | K6: 0.1 | L6: 0.05 | M6: 0.05 | N6: =SUM(F6:M6) -> 1
D7: FINANCEIRO | E7: =ORÇAMENTO!L10 -> 353439.22 | F7: =ROUND($E$7*F6,2) -> 141375.69 | G7: =ROUND($E$7*G6,2) -> 35343.92 | H7: =ROUND($E$7*H6,2) -> 35343.92 | I7: =ROUND($E$7*I6,2) -> 35343.92 | J7: 35343.92 | K7: =ROUND($E$7*K6,2) -> 35343.92 | L7: 17671.96 | M7: 17671.96 | N7: =SUM(F7:M7) -> 353439.21
A8: B | B8: =VLOOKUP(A8,ORÇAMENTO!$A$10:$L$43,2) -> 2 | C8: =VLOOKUP(A8,ORÇAMENTO!$A$10:$L$43,5) -> TERRAPLANAGEM E PAVIMENTAÇÃO | D8: FISICO | E8: =ROUND(E9/$G$2,4) -> 0.211 | F8: 0.15 | G8: 0.15 | H8: 0.15 | I8: 0.15 | J8: 0.15 | K8: 0.15 | L8: 0.1 | M8: 0 | N8: =SUM(F8:M8) -> 1
D9: FINANCEIRO | E9: =ORÇAMENTO!L17 -> 632944 | F9: =ROUND($E$9*F8,2) -> 94941.6 | G9: =ROUND($E$9*G8,2) -> 94941.6 | H9: =ROUND($E$9*H8,2) -> 94941.6 | I9: =ROUND($E$9*I8,2) -> 94941.6 | J9: 94941.6 | K9: =ROUND($E$9*K8,2) -> 94941.6 | L9: 63294.4 | M9: 0 | N9: =SUM(F9:M9) -> 632944
A10: C | B10: =VLOOKUP(A10,ORÇAMENTO!$A$10:$L$43,2) -> 3 | C10: =VLOOKUP(A10,ORÇAMENTO!$A$10:$L$43,5) -> TRANSPORTE DE MATERIAIS | D10: FISICO | E10: =ROUND(E11/$G$2,4) -> 0.1056 | F10: 0.15 | G10: 0.15 | H10: 0.15 | I10: 0.15 | J10: 0.15 | K10: 0.15 | L10: 0.1 | M10: 0 | N10: =SUM(F10:M10) -> 1
D11: FINANCEIRO | E11: =ORÇAMENTO!L24 -> 316714 | F11: =ROUND($E$11*F10,2) -> 47507.1 | G11: =ROUND($E$11*G10,2) -> 47507.1 | H11: =ROUND($E$11*H10,2) -> 47507.1 | I11: =ROUND($E$11*I10,2) -> 47507.1 | J11: 47507.1 | K11: =ROUND($E$11*K10,2) -> 47507.1 | L11: 31671.4 | M11: 0 | N11: =SUM(F11:M11)-0.04 -> 316713.96
A12: E | B12: =VLOOKUP(A12,ORÇAMENTO!$A$10:$L$43,2) -> 4 | C12: =VLOOKUP(A12,ORÇAMENTO!$A$10:$L$43,5) -> DRENAGEM E OBRAS COMPLEMENTARES | D12: FISICO | E12: =ROUND(E13/$G$2,4) -> 0.2611 | G12: 0.15 | H12: 0.15 | I12: 0.15 | J12: 0.15 | K12: 0.15 | L12: 0.15 | M12: 0.1 | N12: =SUM(F12:M12) -> 1
D13: FINANCEIRO | E13: =ORÇAMENTO!L30 -> 783411 | F13: =ROUND($E$13*F12,2) -> 0 | G13: =ROUND($E$13*G12,2) -> 117511.65 | H13: =ROUND($E$13*H12,2) -> 117511.65 | I13: =ROUND($E$13*I12,2) -> 117511.65 | J13: 117511.65 | K13: =ROUND($E$13*K12,2) -> 117511.65 | L13: 117511.65 | M13: 78341.1 | N13: =SUM(F13:M13)-0.02 -> 783410.98
A14: F | B14: =VLOOKUP(A14,ORÇAMENTO!$A$10:$L$43,2) -> 5 | C14: =VLOOKUP(A14,ORÇAMENTO!$A$10:$L$43,5) -> FORNECIMENTOS - MATERIAL ASFÁLTICO (BDI DIFERENCIADO) | D14: FISICO | E14: =ROUND(E15/$G$2,4) -> 0.3045 | F14: 0.15 | G14: 0.15 | H14: 0.15 | I14: 0.15 | J14: 0.15 | K14: 0.15 | L14: 0.1 | M14: 0 | N14: =SUM(F14:M14) -> 1
D15: FINANCEIRO | E15: =ORÇAMENTO!L36 -> 913452.76 | F15: =ROUND($E$15*F14,2) -> 137017.91 | G15: 137017.91 | H15: 137017.91 | I15: 137017.91 | J15: 137017.91 | K15: =ROUND($E$15*K14,2) -> 137017.91 | L15: 91345.28 | M15: 0 | N15: =SUM(F15:M15)-0.02 -> 913452.72
B16: TOTAL | D16: FISICO | E16: =SUM(F16:M16) -> 0.99999999 | F16: =F17/$E$17 -> 0.1402825913 | G16: =G17/$E$17 -> 0.1441092677 | H16: =H17/$E$17 -> 0.1441092677 | I16: =I17/$E$17 -> 0.1441092677 | J16: 0.1441092677 | K16: 0.1441092677 | L16: 0.1071662905 | M16: 0.03200476961 | N16: =SUM(F16:M16) -> 0.99999999
D17: FINANCEIRO | E17: =E11+E9+E7+E15+E13 -> 2999960.98 | F17: =F11+F9+F7+F15+F13 -> 420842.3 | G17: =G11+G9+G7+G15+G13 -> 432322.18 | H17: 432322.18 | I17: 432322.18 | J17: 432322.18 | K17: =K11+K9+K7+K15+K13 -> 432322.18 | L17: 321494.69 | M17: 96013.06 | N17: =SUM(F17:M17)-0.06 -> 2999960.89
B19: OBSERVAÇÕES:

Sheet EAI
C2: MEMÓRIA DE CÁLCULO
G6: TIPOLOGIA DO MATERIAL | I6: Emulsão Asfáltica para Serviço de Imprimação | M6: IMPOSTOS | N6: COFINS | O6: 0.0065 | P6: 0.0065
G7: ÍNDICE DE PAVIMENTAÇÃO DNIT | H7: 2014-07-01 | I7: ÍNDICE INICIAL | J7: 270.237 | N7: PIS | O7: 0.03 | P7: 0.03 | T7: LEGENDA | AC7: As empresas tributadas pelo Lucro Presumido pagam 0,65% de PIS e 3% de COFINS
H8: 2025-06-01 | I8: ÍNDICE FINAL | J8: 586.211 | N8: ICMS | O8: 0.18 | P8: 0.18 | Q8: =1-(O8/1) -> 0.82 | R8: =1-(P8/1) -> 0.82 | S8: =1-(Q8/1) -> 0.18 | T8: ENTRADA DE DADOS | V8: QUANT.ESTIMADA DE EMULSÃO ASFÁLTICA PARA IMPRIMAÇÃO (TON.): | Z8: =ORÇAMENTO!H37 -> 28 | AA8: TONELADAS | AC8: As empresas tributadas pelo Lucro Real pagam 1,65% de PIS e 7,60% de COFINS
G9: Data ANP | H9: 2025-06-01
C11: DATA-BASE | D11: PRODUTOS | E11: LOCALIDADES | J11: CUSTO ANP (R$/Kg) | L11: CUSTO ANP | M11: IMPOSTOS DO PRODUTO | N11: CUSTO DO PRODUTO COM IMPOSTOS | O11: DMT's | P11: DMT's FLUVIAL | Q11: CUSTO DO TRANSPORTE RODOVIA PAVIMENTADA | R11: CUSTO DO TRANSPORTE FLUVIAL | S11: CUSTO DO TRANSPORTE TOTAL | T11: ICMS | U11: ATUALIZAÇÃO DO CUSTO DE TRANSPORTE | V11: CUSTO DO TRANSPORTE RODOVIA PAVIMENTADA COM IMPOSTOS E ATUALIZAÇÃO MONETÁRIA | W11: PEDÁGIO | Y11: TOTAL TRANSPORTE | Z11: AQUISIÇÃO DO PRODUTO | AA11: TOTAL GERAL ( TRANSP + AQUISIÇÃO) | AC11: 1 | AD11: 2 | AE11: 3
C12: =H8 -> 2025-06-01 | E12: REFINARIAS | F12: ENDEREÇO | G12: ESTADO | H12: CIDADE | I12: DESTINO | J12: ESTADO | K12: REGIÃO | L12: R$/t | M12: R$/t | N12: R$/t | O12: KM | P12: KM | Q12: R$/t | R12: R$/t | S12: R$/t | T12: R$/t | U12: R$/t | V12: R$/t | W12: CUSTO | X12: R$/t | Y12: R$/t | Z12: R$/t | AA12: R$/t | AC12: TOTAL GERAL ( TRANSP + AQUISIÇÃO) | AD12: TOTAL TRANSPORTE | AE12: AQUISIÇÃO DO PRODUTO
B13: =AA13 -> 4029.3762 | C13: 1 | D13: =I6 -> Emulsão Asfáltica para Serviço de Imprimação | E13: Refinaria Abreu e Lima | F13: Rodovia PE 60, Km 10 - Ipojuca - PE CEP:55590-000 | G13: Pernambuco | H13: IPOJUCA - PE | I13: MATO VERDE - MG | J13: - | K13: 2.321629057 | L13: =IF(AND(J13="-",K13="-"),"",IF(AND(J13<>0,K13="-"),J13*1000,IF(AND(J13="-",K13<>0),K13*1000,IF(AND(J13<>0,K13<>0),J13*1000,"")))) -> 2321.629057 | M13: =ROUND(((L13/(1-$O$6-$O$7-$O$8))-L13),2) -> 641.52 | N13: =L13+M13 -> 2963.149057 | O13: 1471 | Q13: =ROUND((26.939+0.253*O13),2) -> 399.1 | S13: =Q13+R13 -> 399.1 | T13: =TRUNC(S13*($O$8/(1-$O$8)),2) -> 87.6 | U13: =TRUNC(IF($J$7="","",(($J$8-$J$7)/$J$7)*(S13+T13)),2) -> 569.07 | V13: =S13+T13+U13 -> 1055.77 | W13: 146.4 | X13: =EVEN($Z$8*2/28)*W13/$Z$8 -> 10.45714286 | Y13: =IF(AND(S13="",T13=""),"",V13+X13) -> 1066.227143 | Z13: =IF(OR(L13="",M13=""),"",L13+M13) -> 2963.149057 | AA13: =IF(OR(Y13="",Z13=""),"",Y13+Z13) -> 4029.3762 | AC13: =AA13 -> 4029.3762 | AD13: =Y13 -> 1066.227143 | AE13: =Z13 -> 2963.149057 | AH13: =IF(OR(G13=$D$50,G13=$D$51,G13=$D$53,G13=$D$59,G13=$D$43,G13=$D$39,G13=$D$35,G13=$D$48,G13=$D$38),"NORDESTE",IF(OR(G13=$D$34,G13=$D$36,G13=$D$37,G13=$D$47,G13=$D$55,G13=$D$56,G13=$D$60),"NORTE",IF(OR(G13=$D$40,G13=$D$42,G13=$D$44,G13=$D$45),"CENTRO-OESTE",IF(OR(G13=$D$58,G13=$D$52,G13=$D$46,G13=$D$41),"SUDESTE",IF(OR(G13=$D$57,G13=$D$49,G13=$D$54),"SUL",""))))) -> NORDESTE
B14: =AA14 -> 4225.4762 | C14: 2 | E14: Refinaria Potiguar Clara Camarão | F14: Rodovia RN 221, KM 25 - Guamaré - RN CEP:59598-000 | G14: Rio Grande do Norte | H14: GUAMARÉ - RN | I14: =I13 -> MATO VERDE - MG | J14: - | K14: 2.321629057 | L14: =IF(AND(J14="-",K14=""),"",IF(AND(J14<>0,K14=""),J14*1000,IF(AND(J14="-",K14<>0),K14*1000,IF(AND(J14<>0,K14<>0),J14*1000,"")))) -> 2321.629057 | M14: =ROUND(((L14/(1-$O$6-$O$7-$O$8))-L14),2) -> 641.52 | N14: =L14+M14 -> 2963.149057 | O14: 1764 | Q14: =ROUND((26.939+0.253*O14),2) -> 473.23 | S14: =Q14+R14 -> 473.23 | T14: =TRUNC(S14*($O$8/(1-$O$8)),2) -> 103.87 | U14: =TRUNC(IF($J$7="","",(($J$8-$J$7)/$J$7)*(S14+T14)),2) -> 674.77 | V14: =S14+T14+U14 -> 1251.87 | W14: 146.4 | X14: =EVEN($Z$8*2/28)*W14/$Z$8 -> 10.45714286 | Y14: =IF(AND(S14="",T14=""),"",V14+X14) -> 1262.327143 | Z14: 2963.149057 | AA14: =IF(OR(Y14="",Z14=""),"",Y14+Z14) -> 4225.4762 | AC14: =AA14 -> 4225.4762 | AD14: =Y14 -> 1262.327143 | AE14: 2963.149057 | AH14: NORDESTE
B15: 3573.7462 | C15: 3 | E15: Refinaria Landulpho Alves (RLAM) | F15: Rodovia BA 523, KM 4 – Mataripe São Francisco do Conde - BA CEP:43900-000 | G15: Bahia | H15: SÃO FRANCISCO DO CONDE - BA | I15: =I14 -> MATO VERDE - MG | J15: - | K15: 2.321629057 | L15: 2321.629057 | M15: =ROUND(((L15/(1-$O$6-$O$7-$O$8))-L15),2) -> 641.52 | N15: 2963.149057 | O15: 788 | Q15: =ROUND((26.939+0.253*O15),2) -> 226.3 | S15: 226.3 | T15: 49.67 | U15: 322.67 | V15: 598.64 | W15: 167.4 | X15: 11.95714286 | Y15: 610.5971429 | Z15: 2963.149057 | AA15: 3573.7462 | AC15: 3573.7462 | AD15: 610.5971429 | AE15: 2963.149057 | AH15: NORDESTE
A16: 2403 | B16: 4196.514543 | C16: 4 | E16: Refinaria Lubrificantes e Derivados do Nordeste (Lubnor) | F16: Av. Leite Barbosa, s/nº - Mucuripe Fortaleza - Ceará CEP:60180-420 | G16: Ceará | H16: FORTALEZA - CE | I16: MATO VERDE - MG | J16: 2.2774374 | K16: 2.321629057 | L16: =IF(AND(J16="-",K16=""),"",IF(AND(J16<>0,K16=""),J16*1000,IF(AND(J16="-",K16<>0),K16*1000,IF(AND(J16<>0,K16<>0),J16*1000,"")))) -> 2277.4374 | M16: =ROUND(((L16/(1-$O$6-$O$7-$O$8))-L16),2) -> 629.31 | N16: 2906.7474 | O16: 1805 | Q16: 483.6 | S16: 483.6 | T16: 106.15 | U16: 689.56 | V16: 1279.31 | W16: 146.4 | X16: 10.45714286 | Y16: 1289.767143 | Z16: 2906.7474 | AA16: 4196.514543 | AC16: 4196.514543 | AD16: 1289.767143 | AE16: 2906.7474 | AH16: NORDESTE
B17: 4169.972541 | C17: 5 | E17: Refinaria Capuava (Recap) | F17: Av. Alberto Soares Sampaio, 2122-A Capuava – Mauá - SP | G17: São Paulo | H17: MAUÁ - SP | I17: MATO VERDE - MG | J17: 2.544712541 | K17: 2.3107589 | L17: 2544.712541 | M17: =ROUND(((L17/(1-$O$6-$O$7-$O$8))-L17),2) -> 703.17 | N17: 3247.882541 | O17: 1217 | Q17: 334.84 | S17: 334.84 | T17: 73.5 | U17: 477.45 | V17: 885.79 | W17: 508.2 | X17: 36.3 | Y17: 922.09 | Z17: 3247.882541 | AA17: 4169.972541 | AC17: 4169.972541 | AD17: 922.09 | AE17: 3247.882541 | AH17: SUDESTE
B18: 3771.0489 | C18: 6 | E18: Refinaria Duque de Caxias (Reduc) | F18: Rodovia Washington Luiz, km 113,7 Campos Elíseos – Duque de Caxias - RJ CEP:25213-005 | G18: Rio de Janeiro | H18: DUQUE DE CAXIAS - RJ | I18: MATO VERDE - MG | J18: - | K18: 2.3107589 | L18: 2310.7589 | M18: 638.52 | N18: 2949.2789 | O18: 1042 | Q18: 290.57 | S18: 290.57 | T18: 63.78 | U18: 414.32 | V18: 768.67 | W18: 743.4 | X18: 53.1 | Y18: 821.77 | Z18: 2949.2789 | AA18: 3771.0489 | AC18: 3771.0489 | AD18: 821.77 | AE18: 2949.2789 | AH18: SUDESTE
B19: 5297.585279 | C19: 7 | E19: Refinaria Alberto Pasqualini (Refap) | F19: Avenida Getúlio Vargas, 11001 - Bairro Brigadeira Canoas - RS - Brasil CEP:92420-221 | G19: Rio Grande do Sul | H19: CANOAS - RS | I19: MATO VERDE - MG | J19: 2.794329564 | K19: 2.669743221 | L19: 2794.329564 | M19: 772.14 | N19: 3566.469564 | O19: 2345 | Q19: 620.22 | S19: 620.22 | T19: 136.14 | U19: 884.37 | V19: 1640.73 | W19: 1265.4 | X19: 90.38571429 | Y19: 1731.115714 | Z19: 3566.469564 | AA19: 5297.585279 | AC19: 5297.585279 | AD19: 1731.115714 | AE19: 3566.469564 | AH19: SUL
B20: 4630.933566 | C20: 8 | E20: Unidade de Industrialização do Xisto (SIX) | F20: Rodovia do Xisto, BR 476, km 153 São Mateus do Sul – PR CEP 83900-000 | G20: Paraná | H20: SÃO MATEUS DO SUL - PR | I20: MATO VERDE - MG | J20: 2.606807852 | K20: 2.669743221 | L20: 2606.807852 | M20: 720.32 | N20: 3327.127852 | O20: 1750 | Q20: 469.69 | S20: 469.69 | T20: 103.1 | U20: 669.73 | V20: 1242.52 | W20: 858 | X20: 61.28571429 | Y20: 1303.805714 | Z20: 3327.127852 | AA20: 4630.933566 | AC20: 4630.933566 | AD20: 1303.805714 | AE20: 3327.127852 | AH20: SUL
B21: 3251.068458 | C21: 9 | E21: Refinaria Gabriel Passos (Regap) | F21: Av. Refinaria Gabriel Passos, 690 Distrito Industrial Paulo Camilo Sul Betim - MG CEP:32669-205 | G21: Minas Gerais | H21: BETIM - MG | I21: MATO VERDE - MG | J21: 2.133551315 | K21: 2.3107589 | L21: 2133.551315 | M21: 589.55 | N21: 2723.101315 | O21: 643 | Q21: 189.62 | S21: 189.62 | T21: 41.62 | U21: 270.37 | V21: 501.61 | W21: 369 | X21: 26.35714286 | Y21: 527.9671429 | Z21: 2723.101315 | AA21: =IF(OR(Y21="",Z21=""),"",Y21+Z21) -> 3251.068458 | AC21: 3251.068458 | AD21: 527.9671429 | AE21: 2723.101315 | AH21: SUDESTE
B22: 4555.044995 | C22: 10 | E22: Refinaria Presidente Getúlio Vargas (Repar) | F22: Rodovia do Xisto, BR 476, km 16 Araucária - PR CEP:83707-440 | G22: Paraná | H22: ARAUCÁRIA - PR | I22: MATO VERDE - MG | J22: 2.606807852 | K22: 2.669743221 | L22: 2606.807852 | M22: 720.32 | N22: 3327.127852 | O22: 1644 | Q22: 442.87 | S22: 442.87 | T22: 97.21 | U22: 631.48 | V22: 1171.56 | W22: 789 | X22: 56.35714286 | Y22: 1227.917143 | Z22: 3327.127852 | AA22: 4555.044995 | AC22: 4555.044995 | AD22: 1227.917143 | AE22: 3327.127852 | AH22: SUL
B23: 4199.402541 | C23: 11 | E23: Refinaria Presidente Bernardes (RPBC) | F23: Av. 9 de abril, 777 - Jardim das Indústrias Cubatão - SP CEP:11505-000 | G23: São Paulo | H23: CUBATÃO - SP | I23: MATO VERDE - MG | J23: 2.544712541 | K23: 2.3107589 | L23: 2544.712541 | M23: 703.17 | N23: 3247.882541 | O23: 1261 | Q23: 345.97 | S23: 345.97 | T23: 75.94 | U23: 493.31 | V23: 915.22 | W23: 508.2 | X23: 36.3 | Y23: 951.52 | Z23: 3247.882541 | AA23: 4199.402541 | AC23: 4199.402541 | AD23: 951.52 | AE23: 3247.882541 | AH23: SUDESTE
B24: 4201.922541 | C24: 12 | E24: Refinaria de Paulínia (Replan) | F24: Rodovia SP 332 - Km. 130 Bonfim - Paulínia – SP CEP:13140-000 | G24: São Paulo | H24: PAULÍNIA - SP | I24: MATO VERDE - MG | J24: 2.544712541 | K24: 2.3107589 | L24: 2544.712541 | M24: 703.17 | N24: 3247.882541 | O24: 1241 | Q24: 340.91 | S24: 340.91 | T24: 74.83 | U24: 486.1 | V24: 901.84 | W24: 730.8 | X24: 52.2 | Y24: 954.04 | Z24: 3247.882541 | AA24: 4201.922541 | AC24: 4201.922541 | AD24: 954.04 | AE24: 3247.882541 | AH24: SUDESTE
B25: 4144.669684 | C25: 13 | E25: Refinaria Henrique Lage (Revap) | F25: Rodovia Presidente Dutra, KM 143, S/N Bairro Jardim Diamante - São José dos Campos – SP CEP:12223-900 | G25: São Paulo | H25: SÃO JOSÉ DOS CAMPOS - SP | I25: MATO VERDE - MG | J25: 2.544712541 | K25: 2.3107589 | L25: 2544.712541 | M25: 703.17 | N25: 3247.882541 | O25: 1173 | Q25: 323.71 | S25: 323.71 | T25: 71.05 | U25: 461.57 | V25: 856.33 | W25: 566.4 | X25: 40.45714286 | Y25: 896.7871429 | Z25: 3247.882541 | AA25: 4144.669684 | AC25: 4144.669684 | AD25: 896.7871429 | AE25: 3247.882541 | AH25: SUDESTE
D34: Acre
D35: Alagoas
D36: Amapá
D37: Amazonas
D38: Bahia
D39: Ceará
D40: Distrito Federal
D41: Espírito Santo
D42: Goiás
D43: Maranhão
D44: Mato Grosso
D45: Mato Grosso do Sul
D46: Minas Gerais
D47: Pará
D48: Paraíba
D49: Paraná
D50: Pernambuco
D51: Piauí
D52: Rio de Janeiro
D53: Rio Grande do Norte
D54: Rio Grande do Sul
D55: Rondônia
D56: Roraima
D57: Santa Catarina
D58: São Paulo
D59: Sergipe
D60: Tocantins
D64: ASFALTOS DILUÍDOS CM-30
D65: ASFALTOS DILUÍDOS CM-70
D66: ASFALTOS DILUÍDOS CR-250
D67: ASFALTOS DILUÍDOS CR-70
D68: CAP MODIFICADO POR BORRACHA DE PNEU AB22
D69: CAP MODIFICADO POR BORRACHA DE PNEU AB8
D70: CAP MODIFICADO POR POLÍMERO 55-75-E
D71: CAP MODIFICADO POR POLÍMERO 60-85-E
D72: CAP MODIFICADO POR POLÍMERO 65-90-E
D73: CIMENTOS ASFÁLTICOS CAP-150-200
D74: CIMENTOS ASFÁLTICOS CAP-30-45
D75: CIMENTOS ASFÁLTICOS CAP-50-70
D76: CIMENTOS ASFÁLTICOS CAP-85-100
D77: EMULSÃO ASFÁLTICA CATIÔNICA DE RUPTURA CONTROLADA PARA SERVIÇO DE LAMA ASFÁLTICA
D78: EMULSÃO ASFÁLTICA DE RUPTURA LENTA CATIÔNICA PARA SERVIÇO DE LAMA ASFÁLTICA
D79: EMULSÃO ASFÁLTICA DE RUPTURA LENTA DE CARGA NEUTRA PARA SERVIÇO DE LAMA ASFÁLTICA
D80: EMULSÃO ASFÁLTICA PARA SERVIÇO DE IMPRIMAÇÃO
D81: EMULSÕES ASF. MOD. POR POLÍMEROS RC1C-E
D82: EMULSÕES ASF. MOD. POR POLÍMEROS RL1C-E
D83: EMULSÕES ASF. MOD. POR POLÍMEROS RM1C-E
D84: EMULSÕES ASF. MOD. POR POLÍMEROS RR1C-E
D85: EMULSÕES ASF. MOD. POR POLÍMEROS RR2C-E
D86: EMULSÕES ASFÁLTICAS RL-1C
D87: EMULSÕES ASFÁLTICAS RM-1C
D88: EMULSÕES ASFÁLTICAS RM-2C
D89: EMULSÕES ASFÁLTICAS RR-1C
D90: EMULSÕES ASFÁLTICAS RR-2C

Sheet RR-1C
C2: MEMÓRIA DE CÁLCULO
G6: TIPOLOGIA DO MATERIAL | I6: EMULSÕES ASFÁLTICAS RR-1C | M6: IMPOSTOS | N6: COFINS | O6: 0.0065 | P6: 0.0065
G7: ÍNDICE DE PAVIMENTAÇÃO DNIT | H7: 2014-07-01 | I7: ÍNDICE INICIAL | J7: 270.237 | N7: PIS | O7: 0.03 | P7: 0.03 | T7: LEGENDA | AC7: As empresas tributadas pelo Lucro Presumido pagam 0,65% de PIS e 3% de COFINS
H8: 2023-10-01 | I8: ÍNDICE FINAL | J8: 586.211 | N8: ICMS | O8: 0.18 | P8: 0.18 | Q8: =1-(O8/1) -> 0.82 | R8: =1-(P8/1) -> 0.82 | S8: =1-(Q8/1) -> 0.18 | T8: ENTRADA DE DADOS | V8: QUANT.ESTIMADA DE RR-1C (TON.): | Z8: =ORÇAMENTO!H39 -> 9 | AA8: TONELADAS | AC8: As empresas tributadas pelo Lucro Real pagam 1,65% de PIS e 7,60% de COFINS
G9: Data ANP | H9: =EAI!H9 -> 2025-06-01
C11: DATA-BASE | D11: PRODUTOS | E11: LOCALIDADES | J11: CUSTO ANP (R$/Kg) | L11: CUSTO ANP | M11: IMPOSTOS DO PRODUTO | N11: CUSTO DO PRODUTO COM IMPOSTOS | O11: DMT's | P11: DMT'S FLUVIAL | Q11: CUSTO DO TRANSPORTE RODOVIA PAVIMENTADA | R11: CUSTO DO TRANSPORTE FLUVIAL | S11: CUSTO DO TRANSPORTE TOTAL | T11: ICMS | U11: ATUALIZAÇÃO DO CUSTO DE TRANSPORTE | V11: CUSTO DO TRANSPORTE RODOVIA PAVIMENTADA COM IMPOSTOS E ATUALIZAÇÃO MONETÁRIA | W11: PEDÁGIO | Y11: TOTAL TRANSPORTE | Z11: AQUISIÇÃO DO PRODUTO | AA11: TOTAL GERAL ( TRANSP + AQUISIÇÃO) | AC11: 1 | AD11: 2 | AE11: 3
C12: =H8 -> 2023-10-01 | E12: REFINARIAS | F12: ENDEREÇO | G12: ESTADO | H12: CIDADE | I12: DESTINO | J12: ESTADO | K12: REGIÃO | L12: R$/t | M12: R$/t | N12: R$/t | O12: KM | P12: KM | Q12: R$/t | R12: R$/t | S12: R$/t | T12: R$/t | U12: R$/t | V12: R$/t | W12: CUSTO | X12: R$/t | Y12: R$/t | Z12: R$/t | AA12: R$/t | AC12: TOTAL GERAL ( TRANSP + AQUISIÇÃO) | AD12: TOTAL TRANSPORTE | AE12: AQUISIÇÃO DO PRODUTO
B13: =AA13 -> 4170.641482 | C13: 1 | D13: =I6 -> EMULSÕES ASFÁLTICAS RR-1C | E13: 'CENTRO OESTE ASFALTOS LTDA. | F13: SETOR DE INFLAMÁVEIS, S/N TRECHO 02 - LOTE 1.100 - GUARÁ - CEP:71225-000 | G13: Distrito Federal | H13: BRASÍLIA - DF | I13: =EAI!I13 -> MATO VERDE - MG | J13: - | K13: 2.692788149 | L13: =IF(AND(J13="-",K13="-"),"",IF(AND(J13<>0,K13="-"),J13*1000,IF(AND(J13="-",K13<>0),K13*1000,IF(AND(J13<>0,K13<>0),J13*1000,"")))) -> 2692.788149 | M13: =ROUND(((L13/(1-$O$6-$O$7-$O$8))-L13),2) -> 744.08 | N13: =L13+M13 -> 3436.868149 | O13: 909 | Q13: =ROUND((26.939+0.253*O13),2) -> 256.92 | S13: =Q13+R13 -> 256.92 | T13: =TRUNC(S13*($O$8/(1-$O$8)),2) -> 56.39 | U13: =TRUNC(IF($J$7="","",(($J$8-$J$7)/$J$7)*(S13+T13)),2) -> 366.33 | V13: =S13+T13+U13 -> 679.64 | W13: 243.6 | X13: =EVEN($Z$8*2/28)*W13/$Z$8 -> 54.13333333 | Y13: =IF(AND(Q13="",T13=""),"",V13+X13) -> 733.7733333 | Z13: =IF(OR(L13="",M13=""),"",L13+M13) -> 3436.868149 | AA13: =IF(OR(Y13="",Z13=""),"",Y13+Z13) -> 4170.641482 | AC13: =AA13 -> 4170.641482 | AD13: =Y13 -> 733.7733333 | AE13: =Z13 -> 3436.868149 | AH13: =IF(OR(G13=$D$52,G13=$D$53,G13=$D$55,G13=$D$61,G13=$D$45,G13=$D$41,G13=$D$37,G13=$D$50,G13=$D$40),"NORDESTE",IF(OR(G13=$D$36,G13=$D$38,G13=$D$39,G13=$D$49,G13=$D$57,G13=$D$58,G13=$D$62),"NORTE",IF(OR(G13=$D$42,G13=$D$44,G13=$D$46,G13=$D$47),"CENTRO-OESTE",IF(OR(G13=$D$60,G13=$D$54,G13=$D$48,G13=$D$43),"SUDESTE",IF(OR(G13=$D$59,G13=$D$51,G13=$D$56),"SUL",""))))) -> CENTRO-OESTE
B14: =AA14 -> 4202.680755 | C14: 2 | E14: STRATURA ASFALTOS S/A | F14: AVENIDA PRESIDENTE WILSON, 08 - JUNDIAÍ - CEP:75115-100 | G14: Goiás | H14: ANÁPOLIS - GO | I14: =I13 -> MATO VERDE - MG | J14: 2.656137422 | K14: 2.692788149 | L14: =IF(AND(J14="-",K14="-"),"",IF(AND(J14<>0,K14="-"),J14*1000,IF(AND(J14="-",K14<>0),K14*1000,IF(AND(J14<>0,K14<>0),J14*1000,"")))) -> 2656.137422 | M14: =ROUND(((L14/(1-$O$6-$O$7-$O$8))-L14),2) -> 733.96 | N14: =L14+M14 -> 3390.097422 | O14: 1013 | Q14: =ROUND((26.939+0.253*O14),2) -> 283.23 | S14: =Q14+R14 -> 283.23 | T14: =TRUNC(S14*($O$8/(1-$O$8)),2) -> 62.17 | U14: =TRUNC(IF($J$7="","",(($J$8-$J$7)/$J$7)*(S14+T14)),2) -> 403.85 | V14: =S14+T14+U14 -> 749.25 | W14: 285 | X14: =EVEN($Z$8*2/28)*W14/$Z$8 -> 63.33333333 | Y14: 812.5833333 | Z14: 3390.097422 | AA14: =IF(OR(Y14="",Z14=""),"",Y14+Z14) -> 4202.680755 | AC14: =AA14 -> 4202.680755 | AD14: =Y14 -> 812.5833333 | AE14: 3390.097422 | AH14: CENTRO-OESTE
B15: 4228.260755 | C15: 3 | E15: DISTRIBUIDORA BRASILEIRA DE ASFALTO SA - DISBRAL | F15: VIA PRIMARIA 8, S/N QD-18, MODS. 24/47 - DAIAG - CEP:74980-970 | G15: Goiás | H15: APARECIDA DE GOIANIA - GO | I15: =I14 -> MATO VERDE - MG | J15: 2.656137422 | K15: 2.692788149 | L15: 2656.137422 | M15: 733.96 | N15: 3390.097422 | O15: 1065 | Q15: 296.38 | S15: 296.38 | T15: 65.05 | U15: 422.6 | V15: 784.03 | W15: 243.6 | X15: 54.13333333 | Y15: 838.1633333 | Z15: 3390.097422 | AA15: 4228.260755 | AC15: 4228.260755 | AD15: 838.1633333 | AE15: 3390.097422 | AH15: CENTRO-OESTE
A16: 2403 | B16: 4240.990755 | C16: 4 | E16: INDÚSTRIA NACIONAL DE ASFALTOS LTDA. | F16: VIA PRIMEIRA E SEGUNDA 3, S/N.º LOTES 01 A 10 - DISTRITO AGROINDUSTRIAL - CEP:75370-000 | G16: Goiás | H16: GOIANIRA - GO | I16: MATO VERDE - MG | J16: 2.656137422 | K16: 2.692788149 | L16: 2656.137422 | M16: 733.96 | N16: 3390.097422 | O16: 1084 | Q16: 301.19 | S16: 301.19 | T16: 66.11 | U16: 429.46 | V16: 796.76 | W16: 243.6 | X16: 54.13333333 | Y16: 850.8933333 | Z16: 3390.097422 | AA16: 4240.990755 | AC16: 4240.990755 | AD16: 850.8933333 | AE16: 3390.097422 | AH16: CENTRO-OESTE
B17: 4125.622892 | C17: 5 | E17: STRATURA ASFALTOS S/A | F17: RUA VICTOR RODRIGUES RESENDE, 333 - DISTRITO IND. DE UBERLÂNDIA - CEP:38405-440 | G17: Minas Gerais | H17: UBERLANDIA - MG | I17: MATO VERDE - MG | J17: 2.708526226 | K17: 2.824501468 | L17: 2708.526226 | M17: 748.43 | N17: 3456.956226 | O17: 842 | Q17: 239.97 | S17: 239.97 | T17: 52.67 | U17: 342.16 | V17: 634.8 | W17: 152.4 | X17: 33.86666667 | Y17: 668.6666667 | Z17: 3456.956226 | AA17: 4125.622892 | AC17: 4125.622892 | AD17: 668.6666667 | AE17: 3456.956226 | AH17: SUDESTE
B18: 5667.062877 | C18: 6 | E18: ARAPETRO DISTRIBUIDORA DE PETRÓLEO LTDA. | F18: RUA 04, S/N° LOTES 17 A 20. - DISTRITO INDUSTRIAL 1/8 - CEP:78600-000 | G18: Mato Grosso | H18: BARRA DO GARCAS - MT | I18: =I17 -> MATO VERDE - MG | J18: 3.587839544 | K18: 2.692788149 | L18: =IF(AND(J18="-",K18="-"),"",IF(AND(J18<>0,K18="-"),J18*1000,IF(AND(J18="-",K18<>0),K18*1000,IF(AND(J18<>0,K18<>0),J18*1000,"")))) -> 3587.839544 | M18: =ROUND(((L18/(1-$O$6-$O$7-$O$8))-L18),2) -> 991.41 | N18: 4579.249544 | O18: 1438 | Q18: 390.75 | S18: 390.75 | T18: 85.77 | U18: 557.16 | V18: 1033.68 | W18: 243.6 | X18: 54.13333333 | Y18: 1087.813333 | Z18: 4579.249544 | AA18: 5667.062877 | AH18: CENTRO-OESTE
B19: 4047.246226 | C19: 7 | E19: DISTRIBUIDORA BRASILEIRA DE ASFALTO SA - DISBRAL | F19: SÃO JUDAS TADEU, 288 - DISTRITO INDUSTRIAL - CEP:32450-000 | G19: Minas Gerais | H19: SARZEDO - MG | I19: MATO VERDE - MG | J19: 2.708526226 | K19: 2.824501468 | L19: 2708.526226 | M19: 748.43 | N19: 3456.956226 | O19: 653 | Q19: 192.15 | S19: 192.15 | T19: 42.17 | U19: 273.97 | V19: 508.29 | W19: 369 | X19: 82 | Y19: 590.29 | Z19: 3456.956226 | AA19: 4047.246226 | AH19: SUDESTE
B20: 5404.894424 | C20: 8 | E20: 'INDÚSTRIA NACIONAL DE ASFALTOS LTDA. | F20: INDÚSTRIA NACIONAL DE ASFALTOS LTDA - CEP:77053-080 | G20: Tocantins | H20: PALMAS - TO | I20: MATO VERDE - MG | J20: 3.546484424 | K20: 3.436480974 | L20: 3546.484424 | M20: 979.98 | N20: 4526.464424 | O20: 1206 | Q20: 332.06 | S20: 332.06 | T20: 72.89 | U20: 473.48 | V20: 878.43 | W20: 0 | X20: 0 | Y20: 878.43 | Z20: 4526.464424 | AA20: 5404.894424 | AH20: NORTE
B21: 4534.492312 | C21: 9 | E21: 'NTA - NOVAS TÉCNICAS DE ASFALTOS S/A | F21: RUA SOFIA ATAURI FADIN, 150 SALA A - B. SANTA TEREZINHA - CEP:13140-000 | G21: São Paulo | H21: PAULINIA - SP | I21: MATO VERDE - MG | J21: 2.752852312 | K21: 2.824501468 | L21: 2752.852312 | M21: =ROUND(((L21/(1-$O$6-$O$7-$O$8))-L21),2) -> 760.68 | N21: 3513.532312 | O21: 1208 | Q21: 332.56 | S21: 332.56 | T21: 73 | U21: 474.2 | V21: 879.76 | W21: 635.4 | X21: 141.2 | Y21: 1020.96 | Z21: 3513.532312 | AA21: 4534.492312 | AC21: 4534.492312 | AD21: 1020.96 | AE21: 3513.532312 | AH21: SUDESTE
B22: 4484.288979 | C22: 10 | E22: COMPANHIA BRASILEIRA DE ASFALTOS DA AMAZÔNIA - IMPORTAÇÃO E EXPORTAÇÃO | F22: Avenida Doutor Olindo Dártora 2451, Galpão 02, Morro Grande - CEP:07726-555 | G22: São Paulo | H22: CAIEIRAS - SP | I22: MATO VERDE - MG | J22: 2.752852312 | K22: 2.824501468 | L22: 2752.852312 | M22: =ROUND(((L22/(1-$O$6-$O$7-$O$8))-L22),2) -> 760.68 | N22: 3513.532312 | O22: 1181 | Q22: 325.73 | S22: 325.73 | T22: 71.5 | U22: 464.46 | V22: 861.69 | W22: 490.8 | X22: 109.0666667 | Y22: 970.7566667 | Z22: 3513.532312 | AA22: 4484.288979 | AH22: SUDESTE
B23: 4649.654815 | C23: 11 | E23: BETUNEL INDÚSTRIA E COMÉRCIO LTDA. | F23: R 16 , 82, Vila Nova Campo Grande - CEP:79.103-834 | G23: Mato Grosso do Sul | H23: CAMPO GRANDE - MS | I23: MATO VERDE - MG | J23: - | K23: 2.692788149 | L23: 2692.788149 | M23: =ROUND(((L23/(1-$O$6-$O$7-$O$8))-L23),2) -> 744.08 | N23: 3436.868149 | O23: 1655 | Q23: 445.65 | S23: 445.65 | T23: 97.82 | U23: 635.45 | V23: 1178.92 | W23: 152.4 | X23: 33.86666667 | Y23: 1212.786667 | Z23: 3436.868149 | AA23: 4649.654815 | AH23: CENTRO-OESTE
B24: 6061.332877 | C24: 12 | E24: BETUNEL INDÚSTRIA E COMÉRCIO LTDA. | F24: RUA N ESQUINA COM RUA X, S/N QD. IND. 7 L 01/08 - DIST. IND. - CEP:78015-285 | G24: Mato Grosso | H24: CUIABA - MT | I24: =I23 -> MATO VERDE - MG | J24: 3.587839544 | K24: 2.692788149 | L24: 3587.839544 | M24: 991.41 | N24: 4579.249544 | O24: 1990 | Q24: 530.41 | S24: 530.41 | T24: 116.43 | U24: 756.31 | V24: 1403.15 | W24: 355.2 | X24: 78.93333333 | Y24: 1482.083333 | Z24: 4579.249544 | AA24: 6061.332877 | AH24: CENTRO-OESTE
B25: 4473.638979 | C25: 13 | E25: VIAPOL LTDA. | F25: VITO ARDITO, 6401 KM 118,5 - JARDIM CAMPO GRANDE - CEP:12282-535 | G25: São Paulo | H25: CACAPAVA - SP | I25: =I24 -> MATO VERDE - MG | J25: 2.752852312 | K25: 2.824501468 | L25: 2752.852312 | M25: 760.68 | N25: 3513.532312 | O25: 1140 | Q25: 315.36 | S25: 315.36 | T25: 69.22 | U25: 449.66 | V25: 834.24 | W25: 566.4 | X25: 125.8666667 | Y25: 960.1066667 | Z25: 3513.532312 | AA25: 4473.638979 | AC25: 4473.638979 | AD25: 960.1066667 | AE25: 3513.532312 | AH25: SUDESTE
B26: 4227.86676 | C26: 14 | E26: STRATURA ASFALTOS S/A | F26: RUA LUIS DE CAMÕES, 26 - CAMPOS ELÍSEOS - CEP:25225-030 | G26: Rio de Janeiro | H26: DUQUE DE CAXIAS - RJ | I26: MATO VERDE - MG | J26: 2.62386676 | K26: 2.824501468 | L26: 2623.86676 | M26: 725.04 | N26: 3348.90676 | O26: 960 | Q26: 269.82 | S26: 269.82 | T26: 59.22 | U26: 384.72 | V26: 713.76 | W26: 743.4 | X26: 165.2 | Y26: 878.96 | Z26: 3348.90676 | AA26: 4227.86676 | AC26: 4227.86676 | AD26: 878.96 | AE26: 3348.90676 | AH26: SUDESTE
B27: 4741.280032 | C27: 15 | E27: CASA DO ASFALTO DISTRIBUIDORA, INDÚSTRIA E COMÉRCIO DE ASFALTO LTDA. | F27: BR 376, PARQUE INDUSTRIAL, S/N LOTE 6/7/7-A-3-1 - GL.PATR.MARIALVA - CEP:86990-000 | G27: Paraná | H27: MARIALVA - PR | I27: =I26 -> MATO VERDE - MG | J27: 2.691348921 | K27: 2.700874841 | L27: 2691.348921 | M27: 743.68 | N27: 3435.028921 | O27: 1580 | Q27: 426.68 | S27: 426.68 | T27: 93.66 | U27: 608.4 | V27: 1128.74 | W27: 798.8 | X27: 177.5111111 | Y27: 1306.251111 | Z27: 3435.028921 | AA27: 4741.280032 | AC27: 4741.280032 | AD27: 1306.251111 | AE27: 3435.028921 | AH27: SUL
D36: Acre
D37: Alagoas
D38: Amapá
D39: Amazonas
D40: Bahia
D41: Ceará
D42: Distrito Federal
D43: Espírito Santo
D44: Goiás
D45: Maranhão
D46: Mato Grosso
D47: Mato Grosso do Sul
D48: Minas Gerais
D49: Pará
D50: Paraíba
D51: Paraná
D52: Pernambuco
D53: Piauí
D54: Rio de Janeiro
D55: Rio Grande do Norte
D56: Rio Grande do Sul
D57: Rondônia
D58: Roraima
D59: Santa Catarina
D60: São Paulo
D61: Sergipe
D62: Tocantins
D66: ASFALTOS DILUÍDOS CM-30
D67: ASFALTOS DILUÍDOS CM-70
D68: ASFALTOS DILUÍDOS CR-250
D69: ASFALTOS DILUÍDOS CR-70
D70: CAP MODIFICADO POR BORRACHA DE PNEU AB22
D71: CAP MODIFICADO POR BORRACHA DE PNEU AB8
D72: CAP MODIFICADO POR POLÍMERO 55-75-E
D73: CAP MODIFICADO POR POLÍMERO 60-85-E
D74: CAP MODIFICADO POR POLÍMERO 65-90-E
D75: CIMENTOS ASFÁLTICOS CAP-150-200
D76: CIMENTOS ASFÁLTICOS CAP-30-45
D77: CIMENTOS ASFÁLTICOS CAP-50-70
D78: CIMENTOS ASFÁLTICOS CAP-85-100
D79: EMULSÃO ASFÁLTICA CATIÔNICA DE RUPTURA CONTROLADA PARA SERVIÇO DE LAMA ASFÁLTICA
D80: EMULSÃO ASFÁLTICA DE RUPTURA LENTA CATIÔNICA PARA SERVIÇO DE LAMA ASFÁLTICA
D81: EMULSÃO ASFÁLTICA DE RUPTURA LENTA DE CARGA NEUTRA PARA SERVIÇO DE LAMA ASFÁLTICA
D82: EMULSÃO ASFÁLTICA PARA SERVIÇO DE IMPRIMAÇÃO
D83: EMULSÕES ASF. MOD. POR POLÍMEROS RC1C-E
D84: EMULSÕES ASF. MOD. POR POLÍMEROS RL1C-E
D85: EMULSÕES ASF. MOD. POR POLÍMEROS RM1C-E
D86: EMULSÕES ASF. MOD. POR POLÍMEROS RR1C-E
D87: EMULSÕES ASF. MOD. POR POLÍMEROS RR2C-E
D88: EMULSÕES ASFÁLTICAS RL-1C
D89: EMULSÕES ASFÁLTICAS RM-1C
D90: EMULSÕES ASFÁLTICAS RM-2C
D91: EMULSÕES ASFÁLTICAS RR-1C
D92: EMULSÕES ASFÁLTICAS RR-2C

Sheet CAP
C2: MEMÓRIA DE CÁLCULO
G6: TIPOLOGIA DO MATERIAL | I6: CIMENTOS ASFÁLTICOS CAP-50-70 | M6: IMPOSTOS | N6: COFINS | O6: 0.0065 | P6: 0.0065
G7: ÍNDICE DE PAVIMENTAÇÃO DNIT | H7: 2014-07-01 | I7: ÍNDICE INICIAL | J7: 270.237 | N7: PIS | O7: 0.03 | P7: 0.03 | T7: LEGENDA | V7: QUANT.ESTIMADA DE MASSA ASFÁLTICA (TON.): | Z7: =ORÇAMENTO!H23 -> 2200 | AA7: TONELADAS | AC7: As empresas tributadas pelo Lucro Presumido pagam 0,65% de PIS e 3% de COFINS
H8: 2025-06-01 | I8: ÍNDICE FINAL | J8: 586.211 | N8: ICMS | O8: 0.18 | P8: 0.18 | Q8: =1-(O8/1) -> 0.82 | R8: =1-(P8/1) -> 0.82 | S8: =1-(Q8/1) -> 0.18 | T8: ENTRADA DE DADOS | V8: QUANT.ESTIMADA DE CAP 50/70 (TON.): | Z8: =ORÇAMENTO!H41 -> 125 | AA8: TONELADAS | AC8: As empresas tributadas pelo Lucro Real pagam 1,65% de PIS e 7,60% de COFINS
G9: Data ANP | H9: =EAI!H9 -> 2025-06-01
C11: DATA-BASE | D11: PRODUTOS | E11: LOCALIDADES | J11: CUSTO ANP (R$/Kg) | L11: CUSTO ANP | M11: IMPOSTOS DO PRODUTO | N11: CUSTO DO PRODUTO COM IMPOSTOS | O11: DMT's | P11: DMT's FLUVIAL | Q11: CUSTO DO TRANSPORTE RODOVIA PAVIMENTADA | R11: CUSTO DO TRANSPORTE FLUVIAL | S11: CUSTO DO TRANSPORTE TOTAL | T11: ICMS | U11: ATUALIZAÇÃO DO CUSTO DE TRANSPORTE | V11: CUSTO DO TRANSPORTE RODOVIA PAVIMENTADA COM IMPOSTOS E ATUALIZAÇÃO MONETÁRIA | W11: PEDÁGIO | Y11: TOTAL TRANSPORTE | Z11: AQUISIÇÃO DO PRODUTO | AA11: TOTAL GERAL ( TRANSP + AQUISIÇÃO) | AC11: 1 | AD11: 2 | AE11: 3
C12: =H8 -> 2025-06-01 | E12: REFINARIAS | F12: ENDEREÇO | G12: ESTADO | H12: CIDADE | I12: DESTINO | J12: ESTADO | K12: REGIÃO | L12: R$/t | M12: R$/t | N12: R$/t | O12: KM | P12: KM | Q12: R$/t | R12: R$/t | S12: R$/t | T12: R$/t | U12: R$/t | V12: R$/t | W12: CUSTO | X12: R$/t | Y12: R$/t | Z12: R$/t | AA12: R$/t | AC12: TOTAL GERAL ( TRANSP + AQUISIÇÃO) | AD12: TOTAL TRANSPORTE | AE12: AQUISIÇÃO DO PRODUTO
B13: =AA13 -> 5869.392019 | C13: 1 | D13: =I6 -> CIMENTOS ASFÁLTICOS CAP-50-70 | E13: Refinaria Abreu e Lima | F13: Rodovia PE 60, Km 10 - Ipojuca - PE CEP:55590-000 | G13: Pernambuco | H13: IPOJUCA - PE | I13: JANAÚBA - MG | J13: - | K13: 3.719280019 | L13: =IF(AND(J13="-",K13="-"),"",IF(AND(J13<>0,K13="-"),J13*1000,IF(AND(J13="-",K13<>0),K13*1000,IF(AND(J13<>0,K13<>0),J13*1000,"")))) -> 3719.280019 | M13: =ROUND(((L13/(1-$O$6-$O$7-$O$8))-L13),2) -> 1027.73 | N13: =L13+M13 -> 4747.010019 | O13: 1553 | Q13: =ROUND((26.939+0.253*O13),2) -> 419.85 | S13: =Q13+R13 -> 419.85 | T13: =TRUNC(S13*($O$8/(1-$O$8)),2) -> 92.16 | U13: =TRUNC(IF($J$7="","",(($J$8-$J$7)/$J$7)*(S13+T13)),2) -> 598.66 | V13: =S13+T13+U13 -> 1110.67 | W13: 146.4 | X13: =EVEN($Z$8*2/28)*W13/$Z$8 -> 11.712 | Y13: =IF(AND(Q13="",T13=""),"",V13+X13) -> 1122.382 | Z13: =IF(OR(L13="",M13=""),"",L13+M13) -> 4747.010019 | AA13: =IF(OR(Y13="",Z13=""),"",Y13+Z13) -> 5869.392019 | AC13: =AA13 -> 5869.392019 | AD13: =Y13 -> 1122.382 | AE13: =Z13 -> 4747.010019 | AH13: =IF(OR(G13=$D$51,G13=$D$52,G13=$D$54,G13=$D$60,G13=$D$44,G13=$D$40,G13=$D$36,G13=$D$49,G13=$D$39),"NORDESTE",IF(OR(G13=$D$35,G13=$D$37,G13=$D$38,G13=$D$48,G13=$D$56,G13=$D$57,G13=$D$61),"NORTE",IF(OR(G13=$D$41,G13=$D$43,G13=$D$45,G13=$D$46),"CENTRO-OESTE",IF(OR(G13=$D$59,G13=$D$53,G13=$D$47,G13=$D$42),"SUDESTE",IF(OR(G13=$D$58,G13=$D$50,G13=$D$55),"SUL",""))))) -> NORDESTE
B14: =AA14 -> 6054.782019 | C14: 3 | E14: Refinaria Potiguar Clara Camarão | F14: Rodovia RN 221, KM 25 - Guamaré - RN CEP:59598-000 | G14: Rio Grande do Norte | H14: GUAMARÉ - RN | I14: =I13 -> JANAÚBA - MG | J14: - | K14: 3.719280019 | L14: 3719.280019 | M14: =ROUND(((L14/(1-$O$6-$O$7-$O$8))-L14),2) -> 1027.73 | N14: =L14+M14 -> 4747.010019 | O14: 1830 | Q14: =ROUND((26.939+0.253*O14),2) -> 489.93 | S14: =Q14+R14 -> 489.93 | T14: =TRUNC(S14*($O$8/(1-$O$8)),2) -> 107.54 | U14: =TRUNC(IF($J$7="","",(($J$8-$J$7)/$J$7)*(S14+T14)),2) -> 698.59 | V14: =S14+T14+U14 -> 1296.06 | W14: 146.4 | X14: =EVEN($Z$8*2/28)*W14/$Z$8 -> 11.712 | Y14: 1307.772 | Z14: 4747.010019 | AA14: =IF(OR(Y14="",Z14=""),"",Y14+Z14) -> 6054.782019 | AC14: =AA14 -> 6054.782019 | AD14: =Y14 -> 1307.772 | AE14: 4747.010019 | AH14: NORDESTE
B15: 5411.821562 | C15: 4 | E15: Refinaria Landulpho Alves (RLAM) | F15: Rodovia BA 523, KM 4 – Mataripe São Francisco do Conde - BA CEP:43900-000 | G15: Bahia | H15: SÃO FRANCISCO DO CONDE - BA | I15: =I14 -> JANAÚBA - MG | J15: 3.724959562 | K15: 3.719280019 | L15: 3724.959562 | M15: =ROUND(((L15/(1-$O$6-$O$7-$O$8))-L15),2) -> 1029.3 | N15: 4754.259562 | O15: 856 | Q15: =ROUND((26.939+0.253*O15),2) -> 243.51 | S15: 243.51 | T15: 53.45 | U15: 347.21 | V15: 644.17 | W15: 167.4 | X15: 13.392 | Y15: 657.562 | Z15: 4754.259562 | AA15: 5411.821562 | AC15: 5411.821562 | AD15: 657.562 | AE15: 4754.259562 | AH15: NORDESTE
A16: 2403 | B16: 6030.295784 | C16: 5 | E16: Refinaria Lubrificantes e Derivados do Nordeste (Lubnor) | F16: Av. Leite Barbosa, s/nº - Mucuripe Fortaleza - Ceará CEP:60180-420 | G16: Ceará | H16: FORTALEZA - CE | I16: JANAÚBA - MG | J16: 3.676513784 | K16: 3.719280019 | L16: 3676.513784 | M16: =ROUND(((L16/(1-$O$6-$O$7-$O$8))-L16),2) -> 1015.91 | N16: 4692.423784 | O16: 1875 | Q16: 501.31 | S16: 501.31 | T16: 110.04 | U16: 714.81 | V16: 1326.16 | W16: 146.4 | X16: 11.712 | Y16: 1337.872 | Z16: 4692.423784 | AA16: 6030.295784 | AC16: 6030.295784 | AD16: 1337.872 | AE16: 4692.423784 | AH16: NORDESTE
B17: 5363.626002 | C17: 6 | E17: Refinaria Capuava (Recap) | F17: Av. Alberto Soares Sampaio, 2122-A Capuava – Mauá - SP | G17: São Paulo | H17: MAUÁ - SP | I17: JANAÚBA - MG | J17: 3.523220002 | K17: 3.7003937 | L17: 3523.220002 | M17: =ROUND(((L17/(1-$O$6-$O$7-$O$8))-L17),2) -> 973.55 | N17: 4496.770002 | O17: 1128 | Q17: 312.32 | S17: 312.32 | T17: 68.55 | U17: 445.33 | V17: 826.2 | W17: 508.2 | X17: 40.656 | Y17: 866.856 | Z17: 4496.770002 | AA17: 5363.626002 | AC17: 5363.626002 | AD17: 866.856 | AE17: 4496.770002 | AH17: SUDESTE
B18: 5386.009734 | C18: 7 | E18: Refinaria Duque de Caxias (Reduc) | F18: Rodovia Washington Luiz, km 113,7 Campos Elíseos – Duque de Caxias - RJ CEP:25213-005 | G18: Rio de Janeiro | H18: DUQUE DE CAXIAS - RJ | I18: JANAÚBA - MG | J18: 3.614107734 | K18: 3.7003937 | L18: 3614.107734 | M18: 998.67 | N18: 4612.777734 | O18: 960 | Q18: 269.82 | S18: 269.82 | T18: 59.22 | U18: 384.72 | V18: 713.76 | W18: 743.4 | X18: 59.472 | Y18: 773.232 | Z18: 4612.777734 | AA18: 5386.009734 | AC18: 5386.009734 | AD18: 773.232 | AE18: 4612.777734 | AH18: SUDESTE
B19: 6461.754564 | C19: 8 | E19: Refinaria Alberto Pasqualini (Refap) | F19: Avenida Getúlio Vargas, 11001 - Bairro Brigadeira Canoas - RS - Brasil CEP:92420-221 | G19: Rio Grande do Sul | H19: CANOAS - RS | I19: JANAÚBA - MG | J19: 3.770312564 | K19: 3.697751034 | L19: 3770.312564 | M19: 1041.83 | N19: 4812.142564 | O19: 2207 | Q19: 585.31 | S19: 585.31 | T19: 128.48 | U19: 834.59 | V19: 1548.38 | W19: 1265.4 | X19: 101.232 | Y19: 1649.612 | Z19: 4812.142564 | AA19: 6461.754564 | AC19: 6461.754564 | AD19: 1649.612 | AE19: 4812.142564 | AH19: SUL
B20: 5938.680484 | C20: 9 | E20: Unidade de Industrialização do Xisto (SIX) | F20: Rodovia do Xisto, BR 476, km 153 São Mateus do Sul – PR CEP 83900-000 | G20: Paraná | H20: SÃO MATEUS DO SUL - PR | I20: JANAÚBA - MG | J20: 3.665010484 | K20: 3.697751034 | L20: 3665.010484 | M20: 1012.73 | N20: 4677.740484 | O20: 1675 | Q20: 450.71 | S20: 450.71 | T20: 98.93 | U20: 642.66 | V20: 1192.3 | W20: 858 | X20: 68.64 | Y20: 1260.94 | Z20: 4677.740484 | AA20: 5938.680484 | AC20: 5938.680484 | AD20: 1260.94 | AE20: 4677.740484 | AH20: SUL
B21: 5345.571219 | C21: 10 | E21: Refinaria Gabriel Passos (Regap) | F21: Av. Refinaria Gabriel Passos, 690 Distrito Industrial Paulo Camilo Sul Betim - MG CEP:32669-205 | G21: Minas Gerais | H21: BETIM - MG | I21: JANAÚBA - MG | J21: 3.817731219 | K21: 3.7003937 | L21: 3817.731219 | M21: 1054.93 | N21: 4872.661219 | O21: 556 | Q21: 167.61 | S21: 167.61 | T21: 36.79 | U21: 238.99 | V21: 443.39 | W21: 369 | X21: 29.52 | Y21: 472.91 | Z21: 4872.661219 | AA21: =IF(OR(Y21="",Z21=""),"",Y21+Z21) -> 5345.571219 | AC21: 5345.571219 | AD21: 472.91 | AE21: 4872.661219 | AH21: SUDESTE
B22: 5851.530484 | C22: 11 | E22: Refinaria Presidente Getúlio Vargas (Repar) | F22: Rodovia do Xisto, BR 476, km 16 Araucária - PR CEP:83707-440 | G22: Paraná | H22: ARAUCÁRIA - PR | I22: JANAÚBA - MG | J22: 3.665010484 | K22: 3.697751034 | L22: 3665.010484 | M22: 1012.73 | N22: 4677.740484 | O22: 1553 | Q22: 419.85 | S22: 419.85 | T22: 92.16 | U22: 598.66 | V22: 1110.67 | W22: 789 | X22: 63.12 | Y22: 1173.79 | Z22: 4677.740484 | AA22: 5851.530484 | AC22: 5851.530484 | AD22: 1173.79 | AE22: 4677.740484 | AH22: SUL
B23: 5391.756002 | C23: 12 | E23: Refinaria Presidente Bernardes (RPBC) | F23: Av. 9 de abril, 777 - Jardim das Indústrias Cubatão - SP CEP:11505-000 | G23: São Paulo | H23: CUBATÃO - SP | I23: JANAÚBA - MG | J23: 3.523220002 | K23: 3.7003937 | L23: 3523.220002 | M23: 973.55 | N23: 4496.770002 | O23: 1170 | Q23: 322.95 | S23: 322.95 | T23: 70.89 | U23: 460.49 | V23: 854.33 | W23: 508.2 | X23: 40.656 | Y23: 894.986 | Z23: 4496.770002 | AA23: 5391.756002 | AC23: 5391.756002 | AD23: 894.986 | AE23: 4496.770002 | AH23: SUDESTE
B24: 5390.154002 | C24: 13 | E24: Refinaria de Paulínia (Replan) | F24: Rodovia SP 332 - Km. 130 Bonfim - Paulínia – SP CEP:13140-000 | G24: São Paulo | H24: PAULÍNIA - SP | I24: JANAÚBA - MG | J24: 3.523220002 | K24: 3.7003937 | L24: 3523.220002 | M24: 973.55 | N24: 4496.770002 | O24: 1141 | Q24: 315.61 | S24: 315.61 | T24: 69.28 | U24: 450.03 | V24: 834.92 | W24: 730.8 | X24: 58.464 | Y24: 893.384 | Z24: 4496.770002 | AA24: 5390.154002 | AC24: 5390.154002 | AD24: 893.384 | AE24: 4496.770002 | AH24: SUDESTE
B25: 5334.832002 | C25: 14 | E25: Refinaria Henrique Lage (Revap) | F25: Rodovia Presidente Dutra, KM 143, S/N Bairro Jardim Diamante - São José dos Campos – SP CEP:12223-900 | G25: São Paulo | H25: SÃO JOSÉ DOS CAMPOS - SP | I25: JANAÚBA - MG | J25: 3.523220002 | K25: 3.7003937 | L25: 3523.220002 | M25: 973.55 | N25: 4496.770002 | O25: 1078 | Q25: 299.67 | S25: 299.67 | T25: 65.78 | U25: 427.3 | V25: 792.75 | W25: 566.4 | X25: 45.312 | Y25: 838.062 | Z25: 4496.770002 | AA25: 5334.832002 | AC25: 5334.832002 | AD25: 838.062 | AE25: 4496.770002 | AH25: SUDESTE
D35: Acre
D36: Alagoas
D37: Amapá
D38: Amazonas
D39: Bahia
D40: Ceará
D41: Distrito Federal
D42: Espírito Santo
D43: Goiás
D44: Maranhão
D45: Mato Grosso
D46: Mato Grosso do Sul
D47: Minas Gerais
D48: Pará
D49: Paraíba
D50: Paraná
D51: Pernambuco
D52: Piauí
D53: Rio de Janeiro
D54: Rio Grande do Norte
D55: Rio Grande do Sul
D56: Rondônia
D57: Roraima
D58: Santa Catarina
D59: São Paulo
D60: Sergipe
D61: Tocantins
D65: ASFALTOS DILUÍDOS CM-30
D66: ASFALTOS DILUÍDOS CM-70
D67: ASFALTOS DILUÍDOS CR-250
D68: ASFALTOS DILUÍDOS CR-70
D69: CAP MODIFICADO POR BORRACHA DE PNEU AB22
D70: CAP MODIFICADO POR BORRACHA DE PNEU AB8
D71: CAP MODIFICADO POR POLÍMERO 55-75-E
D72: CAP MODIFICADO POR POLÍMERO 60-85-E
D73: CAP MODIFICADO POR POLÍMERO 65-90-E
D74: CIMENTOS ASFÁLTICOS CAP-150-200
D75: CIMENTOS ASFÁLTICOS CAP-30-45
D76: CIMENTOS ASFÁLTICOS CAP-50-70
D77: CIMENTOS ASFÁLTICOS CAP-85-100
D78: EMULSÃO ASFÁLTICA CATIÔNICA DE RUPTURA CONTROLADA PARA SERVIÇO DE LAMA ASFÁLTICA
D79: EMULSÃO ASFÁLTICA DE RUPTURA LENTA CATIÔNICA PARA SERVIÇO DE LAMA ASFÁLTICA
D80: EMULSÃO ASFÁLTICA DE RUPTURA LENTA DE CARGA NEUTRA PARA SERVIÇO DE LAMA ASFÁLTICA
D81: EMULSÃO ASFÁLTICA PARA SERVIÇO DE IMPRIMAÇÃO
D82: EMULSÕES ASF. MOD. POR POLÍMEROS RC1C-E
D83: EMULSÕES ASF. MOD. POR POLÍMEROS RL1C-E
D84: EMULSÕES ASF. MOD. POR POLÍMEROS RM1C-E
D85: EMULSÕES ASF. MOD. POR POLÍMEROS RR1C-E
D86: EMULSÕES ASF. MOD. POR POLÍMEROS RR2C-E
D87: EMULSÕES ASFÁLTICAS RL-1C
D88: EMULSÕES ASFÁLTICAS RM-1C
D89: EMULSÕES ASFÁLTICAS RM-2C
D90: EMULSÕES ASFÁLTICAS RR-1C
D91: EMULSÕES ASFÁLTICAS RR-2C

Sheet MAT.ASF
B9: PLANILHA RESUMO - MATERIAIS ASFÁLTICOS
B12: DATA-BASE | C12: PRODUTOS | D12: LOCALIDADES | H12: CUSTO ANP (R$/Kg) | J12: CUSTO ANP | K12: IMPOSTOS DO PRODUTO | L12: CUSTO DO PRODUTO COM IMPOSTOS | M12: DMT's | N12: DMT's | O12: CUSTO DO TRANSPORTE TOTAL | P12: ICMS | Q12: ATUALIZAÇÃO DO CUSTO DE TRANSPORTE | R12: CUSTO DO TRANSPORTE RODOVIA PAVIMENTADA COM IMPOSTOS E ATUALIZAÇÃO MONETÁRIA | S12: PEDÁGIO | U12: TOTAL TRANSPORTE | V12: TOTAL PRODUTO | W12: TOTAL GERAL
B13: =CAP!H9 -> 2025-06-01 | D13: REFINARIAS | E13: ENDEREÇO | F13: ORIGEM - REFINARIAS / DISTRIBUIDORAS | G13: DESTINO | H13: ESTADO | I13: REGIÃO | J13: R$/t | K13: R$/t | L13: R$/t | M13: KM | N13: KM | O13: R$/t | P13: R$/t | Q13: R$/t | R13: R$/t | S13: CUSTO POR EIXO | T13: R$/t | U13: R$/t | V13: R$/t | W13: R$/t
B14: 1 | C14: CAP 50/70 | D14: Refinaria Abreu e Lima | E14: Rodovia PE 60, Km 10 - Ipojuca - PE CEP:55590-000 | F14: =VLOOKUP($W14,CAP!$B:$AA,7,FALSE) -> SÃO JOSÉ DOS CAMPOS - SP | G14: =VLOOKUP($W14,CAP!$B:$AA,8,FALSE) -> JANAÚBA - MG | H14: =VLOOKUP($W14,CAP!$B:$AA,9,FALSE) -> 3.523220002 | I14: =VLOOKUP($W14,CAP!$B:$AA,10,FALSE) -> 3.7003937 | J14: =VLOOKUP($W14,CAP!$B:$AA,11,FALSE) -> 3523.220002 | K14: =VLOOKUP($W14,CAP!$B:$AA,12,FALSE) -> 973.55 | L14: =VLOOKUP($W14,CAP!$B:$AA,13,FALSE) -> 4496.770002 | M14: =VLOOKUP($W14,CAP!$B$13:$AA$25,14,FALSE) -> 1078 | N14: =VLOOKUP($W14,'[2]Transporte Cap 50-70'!$B:$AA,15,FALSE) ->  | O14: =VLOOKUP($W14,CAP!$B:$AA,18,FALSE) -> 299.67 | P14: =VLOOKUP($W14,CAP!$B:$AA,19,FALSE) -> 65.78 | Q14: =VLOOKUP($W14,CAP!$B:$AA,20,FALSE) -> 427.3 | R14: =VLOOKUP($W14,CAP!$B:$AA,21,FALSE) -> 792.75 | S14: =VLOOKUP($W14,CAP!$B:$AA,22,FALSE) -> 566.4 | T14: =VLOOKUP($W14,CAP!$B:$AA,23,FALSE) -> 45.312 | U14: =VLOOKUP($W14,CAP!$B:$AA,24,FALSE) -> 838.062 | V14: =VLOOKUP($W14,CAP!$B:$AA,25,FALSE) -> 4496.770002 | W14: =SMALL(CAP!$AA$13:$AA$25,1) -> 5334.832002
B15: 2 | D15: Refinaria Potiguar Clara Camarão | E15: Rodovia RN 221, KM 25 - Guamaré - RN CEP:59598-000 | F15: =VLOOKUP($W15,CAP!$B:$AA,7,FALSE) -> BETIM - MG | G15: =VLOOKUP($W15,CAP!$B:$AA,8,FALSE) -> JANAÚBA - MG | H15: =VLOOKUP($W15,CAP!$B:$AA,9,FALSE) -> 3.817731219 | I15: =VLOOKUP($W15,CAP!$B:$AA,10,FALSE) -> 3.7003937 | J15: =VLOOKUP($W15,CAP!$B:$AA,11,FALSE) -> 3817.731219 | K15: =VLOOKUP($W15,CAP!$B:$AA,12,FALSE) -> 1054.93 | L15: =VLOOKUP($W15,CAP!$B:$AA,13,FALSE) -> 4872.661219 | M15: =VLOOKUP($W15,CAP!$B$13:$AA$25,14,FALSE) -> 556 | N15: =VLOOKUP($W15,'[2]Transporte Cap 50-70'!$B:$AA,15,FALSE) ->  | O15: =VLOOKUP($W15,CAP!$B:$AA,18,FALSE) -> 167.61 | P15: =VLOOKUP($W15,CAP!$B:$AA,19,FALSE) -> 36.79 | Q15: =VLOOKUP($W15,CAP!$B:$AA,20,FALSE) -> 238.99 | R15: =VLOOKUP($W15,CAP!$B:$AA,21,FALSE) -> 443.39 | S15: =VLOOKUP($W15,CAP!$B:$AA,22,FALSE) -> 369 | T15: =VLOOKUP($W15,CAP!$B:$AA,23,FALSE) -> 29.52 | U15: =VLOOKUP($W15,CAP!$B:$AA,24,FALSE) -> 472.91 | V15: =VLOOKUP($W15,CAP!$B:$AA,25,FALSE) -> 4872.661219 | W15: =SMALL(CAP!$AA$13:$AA$25,2) -> 5345.571219
B16: 3 | D16: Complexo Petroquímico do Rio de Janeiro (Comperj) | E16: Rodovia Estadual RJ-116 - Km 5,2 - Acesso A-1, s/n, Complemento Sambaetiba - Zona Urbana do 4º Distrito de Itaboraí - RJ CEP:24841-203 | F16: =VLOOKUP($W16,CAP!$B:$AA,7,FALSE) -> MAUÁ - SP | G16: =VLOOKUP($W16,CAP!$B:$AA,8,FALSE) -> JANAÚBA - MG | H16: =VLOOKUP($W16,CAP!$B:$AA,9,FALSE) -> 3.523220002 | I16: =VLOOKUP($W16,CAP!$B:$AA,10,FALSE) -> 3.7003937 | J16: =VLOOKUP($W16,CAP!$B:$AA,11,FALSE) -> 3523.220002 | K16: =VLOOKUP($W16,CAP!$B:$AA,12,FALSE) -> 973.55 | L16: =VLOOKUP($W16,CAP!$B:$AA,13,FALSE) -> 4496.770002 | M16: =VLOOKUP($W16,CAP!$B$13:$AA$25,14,FALSE) -> 1128 | N16: =VLOOKUP($W16,'[2]Transporte Cap 50-70'!$B:$AA,15,FALSE) ->  | O16: =VLOOKUP($W16,CAP!$B:$AA,18,FALSE) -> 312.32 | P16: =VLOOKUP($W16,CAP!$B:$AA,19,FALSE) -> 68.55 | Q16: =VLOOKUP($W16,CAP!$B:$AA,20,FALSE) -> 445.33 | R16: =VLOOKUP($W16,CAP!$B:$AA,21,FALSE) -> 826.2 | S16: =VLOOKUP($W16,CAP!$B:$AA,22,FALSE) -> 508.2 | T16: =VLOOKUP($W16,CAP!$B:$AA,23,FALSE) -> 40.656 | U16: =VLOOKUP($W16,CAP!$B:$AA,24,FALSE) -> 866.856 | V16: =VLOOKUP($W16,CAP!$B:$AA,25,FALSE) -> 4496.770002 | W16: =SMALL(CAP!$AA$13:$AA$25,3) -> 5363.626002
B17: 4 | F17: =VLOOKUP($W17,CAP!$B:$AA,7,FALSE) -> DUQUE DE CAXIAS - RJ | G17: =VLOOKUP($W17,CAP!$B:$AA,8,FALSE) -> JANAÚBA - MG | H17: =VLOOKUP($W17,CAP!$B:$AA,9,FALSE) -> 3.614107734 | I17: =VLOOKUP($W17,CAP!$B:$AA,10,FALSE) -> 3.7003937 | J17: =VLOOKUP($W17,CAP!$B:$AA,11,FALSE) -> 3614.107734 | K17: =VLOOKUP($W17,CAP!$B:$AA,12,FALSE) -> 998.67 | L17: =VLOOKUP($W17,CAP!$B:$AA,13,FALSE) -> 4612.777734 | M17: =VLOOKUP($W17,CAP!$B$13:$AA$25,14,FALSE) -> 960 | N17: =VLOOKUP($W17,'[2]Transporte Cap 50-70'!$B:$AA,15,FALSE) ->  | O17: =VLOOKUP($W17,CAP!$B:$AA,18,FALSE) -> 269.82 | P17: =VLOOKUP($W17,CAP!$B:$AA,19,FALSE) -> 59.22 | Q17: =VLOOKUP($W17,CAP!$B:$AA,20,FALSE) -> 384.72 | R17: =VLOOKUP($W17,CAP!$B:$AA,21,FALSE) -> 713.76 | S17: =VLOOKUP($W17,CAP!$B:$AA,22,FALSE) -> 743.4 | T17: =VLOOKUP($W17,CAP!$B:$AA,23,FALSE) -> 59.472 | U17: =VLOOKUP($W17,CAP!$B:$AA,24,FALSE) -> 773.232 | V17: =VLOOKUP($W17,CAP!$B:$AA,25,FALSE) -> 4612.777734 | W17: =SMALL(CAP!$AA$13:$AA$25,4) -> 5386.009734
B18: 5 | F18: =VLOOKUP($W18,CAP!$B:$AA,7,FALSE) -> PAULÍNIA - SP | G18: =VLOOKUP($W18,CAP!$B:$AA,8,FALSE) -> JANAÚBA - MG | H18: =VLOOKUP($W18,CAP!$B:$AA,9,FALSE) -> 3.523220002 | I18: =VLOOKUP($W18,CAP!$B:$AA,10,FALSE) -> 3.7003937 | J18: =VLOOKUP($W18,CAP!$B:$AA,11,FALSE) -> 3523.220002 | K18: =VLOOKUP($W18,CAP!$B:$AA,12,FALSE) -> 973.55 | L18: =VLOOKUP($W18,CAP!$B:$AA,13,FALSE) -> 4496.770002 | M18: =VLOOKUP($W18,CAP!$B$13:$AA$25,14,FALSE) -> 1141 | N18: =VLOOKUP($W18,'[2]Transporte Cap 50-70'!$B:$AA,15,FALSE) ->  | O18: =VLOOKUP($W18,CAP!$B:$AA,18,FALSE) -> 315.61 | P18: =VLOOKUP($W18,CAP!$B:$AA,19,FALSE) -> 69.28 | Q18: =VLOOKUP($W18,CAP!$B:$AA,20,FALSE) -> 450.03 | R18: =VLOOKUP($W18,CAP!$B:$AA,21,FALSE) -> 834.92 | S18: =VLOOKUP($W18,CAP!$B:$AA,22,FALSE) -> 730.8 | T18: =VLOOKUP($W18,CAP!$B:$AA,23,FALSE) -> 58.464 | U18: =VLOOKUP($W18,CAP!$B:$AA,24,FALSE) -> 893.384 | V18: =VLOOKUP($W18,CAP!$B:$AA,25,FALSE) -> 4496.770002 | W18: =SMALL(CAP!$AA$13:$AA$25,5) -> 5390.154002
B19: 6 | F19: =VLOOKUP($W19,CAP!$B:$AA,7,FALSE) -> CUBATÃO - SP | G19: =VLOOKUP($W19,CAP!$B:$AA,8,FALSE) -> JANAÚBA - MG | H19: =VLOOKUP($W19,CAP!$B:$AA,9,FALSE) -> 3.523220002 | I19: =VLOOKUP($W19,CAP!$B:$AA,10,FALSE) -> 3.7003937 | J19: =VLOOKUP($W19,CAP!$B:$AA,11,FALSE) -> 3523.220002 | K19: =VLOOKUP($W19,CAP!$B:$AA,12,FALSE) -> 973.55 | L19: =VLOOKUP($W19,CAP!$B:$AA,13,FALSE) -> 4496.770002 | M19: =VLOOKUP($W19,CAP!$B$13:$AA$25,14,FALSE) -> 1170 | N19: =VLOOKUP($W19,'[2]Transporte Cap 50-70'!$B:$AA,15,FALSE) ->  | O19: =VLOOKUP($W19,CAP!$B:$AA,18,FALSE) -> 322.95 | P19: =VLOOKUP($W19,CAP!$B:$AA,19,FALSE) -> 70.89 | Q19: =VLOOKUP($W19,CAP!$B:$AA,20,FALSE) -> 460.49 | R19: =VLOOKUP($W19,CAP!$B:$AA,21,FALSE) -> 854.33 | S19: =VLOOKUP($W19,CAP!$B:$AA,22,FALSE) -> 508.2 | T19: =VLOOKUP($W19,CAP!$B:$AA,23,FALSE) -> 40.656 | U19: =VLOOKUP($W19,CAP!$B:$AA,24,FALSE) -> 894.986 | V19: =VLOOKUP($W19,CAP!$B:$AA,25,FALSE) -> 4496.770002 | W19: =SMALL(CAP!$AA$13:$AA$25,6) -> 5391.756002
B21: 1 | C21: EMULSÃO ASFÁLTICA PARA IMPRIMAÇÃO (EAI) | D21: Refinaria Abreu e Lima | E21: Rodovia PE 60, Km 10 - Ipojuca - PE CEP:55590-000 | F21: =VLOOKUP($W21,EAI!$B$13:$AA$24,7,FALSE) -> BETIM - MG | G21: =VLOOKUP($W21,EAI!$B$13:$AA$24,8,FALSE) -> MATO VERDE - MG | H21: =VLOOKUP($W21,EAI!$B$13:$AA$24,9,FALSE) -> 2.133551315 | I21: =VLOOKUP($W21,EAI!$B$13:$AA$24,10,FALSE) -> 2.3107589 | J21: =VLOOKUP($W21,EAI!$B$13:$AA$24,11,FALSE) -> 2133.551315 | K21: =VLOOKUP($W21,EAI!$B$13:$AA$24,12,FALSE) -> 589.55 | L21: =VLOOKUP($W21,EAI!$B$13:$AA$24,13,FALSE) -> 2723.101315 | M21: =VLOOKUP($W21,EAI!$B$13:$AA$24,14,FALSE) -> 643 | N21: =VLOOKUP($W21,'[2]Transporte CM-30'!$B$13:$AA$25,15,FALSE) ->  | O21: =VLOOKUP($W21,EAI!$B$13:$AA$24,18,FALSE) -> 189.62 | P21: =VLOOKUP($W21,EAI!$B$13:$AA$24,19,FALSE) -> 41.62 | Q21: =VLOOKUP($W21,EAI!$B$13:$AA$24,20,FALSE) -> 270.37 | R21: =VLOOKUP($W21,EAI!$B$13:$AA$24,21,FALSE) -> 501.61 | S21: =VLOOKUP($W21,EAI!$B$13:$AA$24,22,FALSE) -> 369 | T21: =VLOOKUP($W21,EAI!$B$13:$AA$24,23,FALSE) -> 26.35714286 | U21: =VLOOKUP($W21,EAI!$B$13:$AA$24,24,FALSE) -> 527.9671429 | V21: =VLOOKUP($W21,EAI!$B:$AA,25,FALSE) -> 2723.101315 | W21: =SMALL(EAI!$AA$13:$AA$24,1) -> 3251.068458
B22: 2 | D22: Refinaria Potiguar Clara Camarão | E22: Rodovia RN 221, KM 25 - Guamaré - RN CEP:59598-000 | F22: =VLOOKUP($W22,EAI!$B$13:$AA$24,7,FALSE) -> SÃO FRANCISCO DO CONDE - BA | G22: =VLOOKUP($W22,EAI!$B$13:$AA$24,8,FALSE) -> MATO VERDE - MG | H22: =VLOOKUP($W22,EAI!$B$13:$AA$24,9,FALSE) -> - | I22: =VLOOKUP($W22,EAI!$B$13:$AA$24,10,FALSE) -> 2.321629057 | J22: =VLOOKUP($W22,EAI!$B$13:$AA$24,11,FALSE) -> 2321.629057 | K22: =VLOOKUP($W22,EAI!$B$13:$AA$24,12,FALSE) -> 641.52 | L22: =VLOOKUP($W22,EAI!$B$13:$AA$24,13,FALSE) -> 2963.149057 | M22: =VLOOKUP($W22,EAI!$B$13:$AA$24,14,FALSE) -> 788 | N22: =VLOOKUP($W22,'[2]Transporte CM-30'!$B$13:$AA$25,15,FALSE) ->  | O22: =VLOOKUP($W22,EAI!$B$13:$AA$24,18,FALSE) -> 226.3 | P22: =VLOOKUP($W22,EAI!$B$13:$AA$24,19,FALSE) -> 49.67 | Q22: =VLOOKUP($W22,EAI!$B$13:$AA$24,20,FALSE) -> 322.67 | R22: =VLOOKUP($W22,EAI!$B$13:$AA$24,21,FALSE) -> 598.64 | S22: =VLOOKUP($W22,EAI!$B$13:$AA$24,22,FALSE) -> 167.4 | T22: =VLOOKUP($W22,EAI!$B$13:$AA$24,23,FALSE) -> 11.95714286 | U22: =VLOOKUP($W22,EAI!$B$13:$AA$24,24,FALSE) -> 610.5971429 | V22: =VLOOKUP($W22,EAI!$B:$AA,25,FALSE) -> 2963.149057 | W22: =SMALL(EAI!$AA$13:$AA$24,2) -> 3573.7462
B23: 3 | D23: Complexo Petroquímico do Rio de Janeiro (Comperj) | E23: Rodovia Estadual RJ-116 - Km 5,2 - Acesso A-1, s/n, Complemento Sambaetiba - Zona Urbana do 4º Distrito de Itaboraí - RJ CEP:24841-203 | F23: =VLOOKUP($W23,EAI!$B$13:$AA$24,7,FALSE) -> DUQUE DE CAXIAS - RJ | G23: =VLOOKUP($W23,EAI!$B$13:$AA$24,8,FALSE) -> MATO VERDE - MG | H23: =VLOOKUP($W23,EAI!$B$13:$AA$24,9,FALSE) -> - | I23: =VLOOKUP($W23,EAI!$B$13:$AA$24,10,FALSE) -> 2.3107589 | J23: =VLOOKUP($W23,EAI!$B$13:$AA$24,11,FALSE) -> 2310.7589 | K23: =VLOOKUP($W23,EAI!$B$13:$AA$24,12,FALSE) -> 638.52 | L23: =VLOOKUP($W23,EAI!$B$13:$AA$24,13,FALSE) -> 2949.2789 | M23: =VLOOKUP($W23,EAI!$B$13:$AA$24,14,FALSE) -> 1042 | N23: =VLOOKUP($W23,'[2]Transporte CM-30'!$B$13:$AA$25,15,FALSE) ->  | O23: =VLOOKUP($W23,EAI!$B$13:$AA$24,18,FALSE) -> 290.57 | P23: =VLOOKUP($W23,EAI!$B$13:$AA$24,19,FALSE) -> 63.78 | Q23: =VLOOKUP($W23,EAI!$B$13:$AA$24,20,FALSE) -> 414.32 | R23: =VLOOKUP($W23,EAI!$B$13:$AA$24,21,FALSE) -> 768.67 | S23: =VLOOKUP($W23,EAI!$B$13:$AA$24,22,FALSE) -> 743.4 | T23: =VLOOKUP($W23,EAI!$B$13:$AA$24,23,FALSE) -> 53.1 | U23: =VLOOKUP($W23,EAI!$B$13:$AA$24,24,FALSE) -> 821.77 | V23: =VLOOKUP($W23,EAI!$B:$AA,25,FALSE) -> 2949.2789 | W23: =SMALL(EAI!$AA$13:$AA$24,3) -> 3771.0489
B24: 4 | F24: =VLOOKUP($W24,EAI!$B$13:$AA$24,7,FALSE) -> IPOJUCA - PE | G24: =VLOOKUP($W24,EAI!$B$13:$AA$24,8,FALSE) -> MATO VERDE - MG | H24: =VLOOKUP($W24,EAI!$B$13:$AA$24,9,FALSE) -> - | I24: =VLOOKUP($W24,EAI!$B$13:$AA$24,10,FALSE) -> 2.321629057 | J24: =VLOOKUP($W24,EAI!$B$13:$AA$24,11,FALSE) -> 2321.629057 | K24: =VLOOKUP($W24,EAI!$B$13:$AA$24,12,FALSE) -> 641.52 | L24: =VLOOKUP($W24,EAI!$B$13:$AA$24,13,FALSE) -> 2963.149057 | M24: =VLOOKUP($W24,EAI!$B$13:$AA$24,14,FALSE) -> 1471 | N24: =VLOOKUP($W24,'[2]Transporte CM-30'!$B$13:$AA$25,15,FALSE) ->  | O24: =VLOOKUP($W24,EAI!$B$13:$AA$24,18,FALSE) -> 399.1 | P24: =VLOOKUP($W24,EAI!$B$13:$AA$24,19,FALSE) -> 87.6 | Q24: =VLOOKUP($W24,EAI!$B$13:$AA$24,20,FALSE) -> 569.07 | R24: =VLOOKUP($W24,EAI!$B$13:$AA$24,21,FALSE) -> 1055.77 | S24: =VLOOKUP($W24,EAI!$B$13:$AA$24,22,FALSE) -> 146.4 | T24: =VLOOKUP($W24,EAI!$B$13:$AA$24,23,FALSE) -> 10.45714286 | U24: =VLOOKUP($W24,EAI!$B$13:$AA$24,24,FALSE) -> 1066.227143 | V24: =VLOOKUP($W24,EAI!$B:$AA,25,FALSE) -> 2963.149057 | W24: =SMALL(EAI!$AA$13:$AA$24,4) -> 4029.3762
B25: 5 | F25: =VLOOKUP($W25,EAI!$B$13:$AA$24,7,FALSE) -> MAUÁ - SP | G25: =VLOOKUP($W25,EAI!$B$13:$AA$24,8,FALSE) -> MATO VERDE - MG | H25: =VLOOKUP($W25,EAI!$B$13:$AA$24,9,FALSE) -> 2.544712541 | I25: =VLOOKUP($W25,EAI!$B$13:$AA$24,10,FALSE) -> 2.3107589 | J25: =VLOOKUP($W25,EAI!$B$13:$AA$24,11,FALSE) -> 2544.712541 | K25: =VLOOKUP($W25,EAI!$B$13:$AA$24,12,FALSE) -> 703.17 | L25: =VLOOKUP($W25,EAI!$B$13:$AA$24,13,FALSE) -> 3247.882541 | M25: =VLOOKUP($W25,EAI!$B$13:$AA$24,14,FALSE) -> 1217 | N25: =VLOOKUP($W25,'[2]Transporte CM-30'!$B$13:$AA$25,15,FALSE) ->  | O25: =VLOOKUP($W25,EAI!$B$13:$AA$24,18,FALSE) -> 334.84 | P25: =VLOOKUP($W25,EAI!$B$13:$AA$24,19,FALSE) -> 73.5 | Q25: =VLOOKUP($W25,EAI!$B$13:$AA$24,20,FALSE) -> 477.45 | R25: =VLOOKUP($W25,EAI!$B$13:$AA$24,21,FALSE) -> 885.79 | S25: =VLOOKUP($W25,EAI!$B$13:$AA$24,22,FALSE) -> 508.2 | T25: =VLOOKUP($W25,EAI!$B$13:$AA$24,23,FALSE) -> 36.3 | U25: =VLOOKUP($W25,EAI!$B$13:$AA$24,24,FALSE) -> 922.09 | V25: =VLOOKUP($W25,EAI!$B:$AA,25,FALSE) -> 3247.882541 | W25: =SMALL(EAI!$AA$13:$AA$24,5) -> 4169.972541
B26: 6 | F26: =VLOOKUP($W26,EAI!$B$13:$AA$24,7,FALSE) -> FORTALEZA - CE | G26: =VLOOKUP($W26,EAI!$B$13:$AA$24,8,FALSE) -> MATO VERDE - MG | H26: =VLOOKUP($W26,EAI!$B$13:$AA$24,9,FALSE) -> 2.2774374 | I26: =VLOOKUP($W26,EAI!$B$13:$AA$24,10,FALSE) -> 2.321629057 | J26: =VLOOKUP($W26,EAI!$B$13:$AA$24,11,FALSE) -> 2277.4374 | K26: =VLOOKUP($W26,EAI!$B$13:$AA$24,12,FALSE) -> 629.31 | L26: =VLOOKUP($W26,EAI!$B$13:$AA$24,13,FALSE) -> 2906.7474 | M26: =VLOOKUP($W26,EAI!$B$13:$AA$24,14,FALSE) -> 1805 | N26: =VLOOKUP($W26,'[2]Transporte CM-30'!$B$13:$AA$25,15,FALSE) ->  | O26: =VLOOKUP($W26,EAI!$B$13:$AA$24,18,FALSE) -> 483.6 | P26: =VLOOKUP($W26,EAI!$B$13:$AA$24,19,FALSE) -> 106.15 | Q26: =VLOOKUP($W26,EAI!$B$13:$AA$24,20,FALSE) -> 689.56 | R26: =VLOOKUP($W26,EAI!$B$13:$AA$24,21,FALSE) -> 1279.31 | S26: =VLOOKUP($W26,EAI!$B$13:$AA$24,22,FALSE) -> 146.4 | T26: =VLOOKUP($W26,EAI!$B$13:$AA$24,23,FALSE) -> 10.45714286 | U26: =VLOOKUP($W26,EAI!$B$13:$AA$24,24,FALSE) -> 1289.767143 | V26: =VLOOKUP($W26,EAI!$B:$AA,25,FALSE) -> 2906.7474 | W26: =SMALL(EAI!$AA$13:$AA$24,6) -> 4196.514543
B28: 1 | C28: RR1-C | D28: Refinaria Abreu e Lima | E28: Rodovia PE 60, Km 10 - Ipojuca - PE CEP:55590-000 | F28: =VLOOKUP($W28,'RR-1C'!$B:$AA,7,FALSE) -> SARZEDO - MG | G28: =VLOOKUP($W28,'RR-1C'!$B:$AA,8,FALSE) -> MATO VERDE - MG | H28: =VLOOKUP($W28,'RR-1C'!$B:$AA,9,FALSE) -> 2.708526226 | I28: =VLOOKUP($W28,'RR-1C'!$B:$AA,10,FALSE) -> 2.824501468 | J28: =VLOOKUP($W28,'RR-1C'!$B:$AA,11,FALSE) -> 2708.526226 | K28: =VLOOKUP($W28,'RR-1C'!$B:$AA,12,FALSE) -> 748.43 | L28: =VLOOKUP($W28,'RR-1C'!$B:$AA,13,FALSE) -> 3456.956226 | M28: =VLOOKUP($W28,'RR-1C'!$B:$AA,14,FALSE) -> 653 | N28: =VLOOKUP($W28,'[2]Transporte RR-1C'!$B:$AA,15,FALSE) ->  | O28: =VLOOKUP($W28,'RR-1C'!$B:$AA,18,FALSE) -> 192.15 | P28: =VLOOKUP($W28,'RR-1C'!$B:$AA,19,FALSE) -> 42.17 | Q28: =VLOOKUP($W28,'RR-1C'!$B:$AA,20,FALSE) -> 273.97 | R28: =VLOOKUP($W28,'RR-1C'!$B:$AA,21,FALSE) -> 508.29 | S28: =VLOOKUP($W28,'RR-1C'!$B:$AA,22,FALSE) -> 369 | T28: =VLOOKUP($W28,'RR-1C'!$B:$AA,23,FALSE) -> 82 | U28: =VLOOKUP($W28,'RR-1C'!$B:$AA,24,FALSE) -> 590.29 | V28: =VLOOKUP($W28,'RR-1C'!$B:$AA,25,FALSE) -> 3456.956226 | W28: =SMALL('RR-1C'!$AA$13:$AA$27,1) -> 4047.246226
B29: 2 | D29: Refinaria Potiguar Clara Camarão | E29: Rodovia RN 221, KM 25 - Guamaré - RN CEP:59598-000 | F29: =VLOOKUP($W29,'RR-1C'!$B:$AA,7,FALSE) -> UBERLANDIA - MG | G29: =VLOOKUP($W29,'RR-1C'!$B:$AA,8,FALSE) -> MATO VERDE - MG | H29: =VLOOKUP($W29,'RR-1C'!$B:$AA,9,FALSE) -> 2.708526226 | I29: =VLOOKUP($W29,'RR-1C'!$B:$AA,10,FALSE) -> 2.824501468 | J29: =VLOOKUP($W29,'RR-1C'!$B:$AA,11,FALSE) -> 2708.526226 | K29: =VLOOKUP($W29,'RR-1C'!$B:$AA,12,FALSE) -> 748.43 | L29: =VLOOKUP($W29,'RR-1C'!$B:$AA,13,FALSE) -> 3456.956226 | M29: =VLOOKUP($W29,'RR-1C'!$B:$AA,14,FALSE) -> 842 | N29: =VLOOKUP($W29,'[2]Transporte RR-1C'!$B:$AA,15,FALSE) ->  | O29: =VLOOKUP($W29,'RR-1C'!$B:$AA,18,FALSE) -> 239.97 | P29: =VLOOKUP($W29,'RR-1C'!$B:$AA,19,FALSE) -> 52.67 | Q29: =VLOOKUP($W29,'RR-1C'!$B:$AA,20,FALSE) -> 342.16 | R29: =VLOOKUP($W29,'RR-1C'!$B:$AA,21,FALSE) -> 634.8 | S29: =VLOOKUP($W29,'RR-1C'!$B:$AA,22,FALSE) -> 152.4 | T29: =VLOOKUP($W29,'RR-1C'!$B:$AA,23,FALSE) -> 33.86666667 | U29: =VLOOKUP($W29,'RR-1C'!$B:$AA,24,FALSE) -> 668.6666667 | V29: =VLOOKUP($W29,'RR-1C'!$B:$AA,25,FALSE) -> 3456.956226 | W29: =SMALL('RR-1C'!$AA$13:$AA$27,2) -> 4125.622892
B30: 3 | D30: Complexo Petroquímico do Rio de Janeiro (Comperj) | E30: Rodovia Estadual RJ-116 - Km 5,2 - Acesso A-1, s/n, Complemento Sambaetiba - Zona Urbana do 4º Distrito de Itaboraí - RJ CEP:24841-203 | F30: =VLOOKUP($W30,'RR-1C'!$B:$AA,7,FALSE) -> BRASÍLIA - DF | G30: =VLOOKUP($W30,'RR-1C'!$B:$AA,8,FALSE) -> MATO VERDE - MG | H30: =VLOOKUP($W30,'RR-1C'!$B:$AA,9,FALSE) -> - | I30: =VLOOKUP($W30,'RR-1C'!$B:$AA,10,FALSE) -> 2.692788149 | J30: =VLOOKUP($W30,'RR-1C'!$B:$AA,11,FALSE) -> 2692.788149 | K30: =VLOOKUP($W30,'RR-1C'!$B:$AA,12,FALSE) -> 744.08 | L30: =VLOOKUP($W30,'RR-1C'!$B:$AA,13,FALSE) -> 3436.868149 | M30: =VLOOKUP($W30,'RR-1C'!$B:$AA,14,FALSE) -> 909 | N30: =VLOOKUP($W30,'[2]Transporte RR-1C'!$B:$AA,15,FALSE) ->  | O30: =VLOOKUP($W30,'RR-1C'!$B:$AA,18,FALSE) -> 256.92 | P30: =VLOOKUP($W30,'RR-1C'!$B:$AA,19,FALSE) -> 56.39 | Q30: =VLOOKUP($W30,'RR-1C'!$B:$AA,20,FALSE) -> 366.33 | R30: =VLOOKUP($W30,'RR-1C'!$B:$AA,21,FALSE) -> 679.64 | S30: =VLOOKUP($W30,'RR-1C'!$B:$AA,22,FALSE) -> 243.6 | T30: =VLOOKUP($W30,'RR-1C'!$B:$AA,23,FALSE) -> 54.13333333 | U30: =VLOOKUP($W30,'RR-1C'!$B:$AA,24,FALSE) -> 733.7733333 | V30: =VLOOKUP($W30,'RR-1C'!$B:$AA,25,FALSE) -> 3436.868149 | W30: =SMALL('RR-1C'!$AA$13:$AA$27,3) -> 4170.641482
B31: 4 | D31: Refinaria Abreu e Lima | E31: Rodovia PE 60, Km 10 - Ipojuca - PE CEP:55590-000 | F31: =VLOOKUP($W31,'RR-1C'!$B:$AA,7,FALSE) -> ANÁPOLIS - GO | G31: =VLOOKUP($W31,'RR-1C'!$B:$AA,8,FALSE) -> MATO VERDE - MG | H31: =VLOOKUP($W31,'RR-1C'!$B:$AA,9,FALSE) -> 2.656137422 | I31: =VLOOKUP($W31,'RR-1C'!$B:$AA,10,FALSE) -> 2.692788149 | J31: =VLOOKUP($W31,'RR-1C'!$B:$AA,11,FALSE) -> 2656.137422 | K31: =VLOOKUP($W31,'RR-1C'!$B:$AA,12,FALSE) -> 733.96 | L31: =VLOOKUP($W31,'RR-1C'!$B:$AA,13,FALSE) -> 3390.097422 | M31: =VLOOKUP($W31,'RR-1C'!$B:$AA,14,FALSE) -> 1013 | N31: =VLOOKUP($W31,'[2]Transporte RR-1C'!$B:$AA,15,FALSE) ->  | O31: =VLOOKUP($W31,'RR-1C'!$B:$AA,18,FALSE) -> 283.23 | P31: =VLOOKUP($W31,'RR-1C'!$B:$AA,19,FALSE) -> 62.17 | Q31: =VLOOKUP($W31,'RR-1C'!$B:$AA,20,FALSE) -> 403.85 | R31: =VLOOKUP($W31,'RR-1C'!$B:$AA,21,FALSE) -> 749.25 | S31: =VLOOKUP($W31,'RR-1C'!$B:$AA,22,FALSE) -> 285 | T31: =VLOOKUP($W31,'RR-1C'!$B:$AA,23,FALSE) -> 63.33333333 | U31: =VLOOKUP($W31,'RR-1C'!$B:$AA,24,FALSE) -> 812.5833333 | V31: =VLOOKUP($W31,'RR-1C'!$B:$AA,25,FALSE) -> 3390.097422 | W31: =SMALL('RR-1C'!$AA$13:$AA$27,4) -> 4202.680755
B32: 5 | D32: Refinaria Potiguar Clara Camarão | E32: Rodovia RN 221, KM 25 - Guamaré - RN CEP:59598-000 | F32: =VLOOKUP($W32,'RR-1C'!$B:$AA,7,FALSE) -> DUQUE DE CAXIAS - RJ | G32: =VLOOKUP($W32,'RR-1C'!$B:$AA,8,FALSE) -> MATO VERDE - MG | H32: =VLOOKUP($W32,'RR-1C'!$B:$AA,9,FALSE) -> 2.62386676 | I32: =VLOOKUP($W32,'RR-1C'!$B:$AA,10,FALSE) -> 2.824501468 | J32: =VLOOKUP($W32,'RR-1C'!$B:$AA,11,FALSE) -> 2623.86676 | K32: =VLOOKUP($W32,'RR-1C'!$B:$AA,12,FALSE) -> 725.04 | L32: =VLOOKUP($W32,'RR-1C'!$B:$AA,13,FALSE) -> 3348.90676 | M32: =VLOOKUP($W32,'RR-1C'!$B:$AA,14,FALSE) -> 960 | N32: =VLOOKUP($W32,'[2]Transporte RR-1C'!$B:$AA,15,FALSE) ->  | O32: =VLOOKUP($W32,'RR-1C'!$B:$AA,18,FALSE) -> 269.82 | P32: =VLOOKUP($W32,'RR-1C'!$B:$AA,19,FALSE) -> 59.22 | Q32: =VLOOKUP($W32,'RR-1C'!$B:$AA,20,FALSE) -> 384.72 | R32: =VLOOKUP($W32,'RR-1C'!$B:$AA,21,FALSE) -> 713.76 | S32: =VLOOKUP($W32,'RR-1C'!$B:$AA,22,FALSE) -> 743.4 | T32: =VLOOKUP($W32,'RR-1C'!$B:$AA,23,FALSE) -> 165.2 | U32: =VLOOKUP($W32,'RR-1C'!$B:$AA,24,FALSE) -> 878.96 | V32: =VLOOKUP($W32,'RR-1C'!$B:$AA,25,FALSE) -> 3348.90676 | W32: =SMALL('RR-1C'!$AA$13:$AA$27,5) -> 4227.86676
B33: 6 | D33: Complexo Petroquímico do Rio de Janeiro (Comperj) | E33: Rodovia Estadual RJ-116 - Km 5,2 - Acesso A-1, s/n, Complemento Sambaetiba - Zona Urbana do 4º Distrito de Itaboraí - RJ CEP:24841-203 | F33: =VLOOKUP($W33,'RR-1C'!$B:$AA,7,FALSE) -> APARECIDA DE GOIANIA - GO | G33: =VLOOKUP($W33,'RR-1C'!$B:$AA,8,FALSE) -> MATO VERDE - MG | H33: =VLOOKUP($W33,'RR-1C'!$B:$AA,9,FALSE) -> 2.656137422 | I33: =VLOOKUP($W33,'RR-1C'!$B:$AA,10,FALSE) -> 2.692788149 | J33: =VLOOKUP($W33,'RR-1C'!$B:$AA,11,FALSE) -> 2656.137422 | K33: =VLOOKUP($W33,'RR-1C'!$B:$AA,12,FALSE) -> 733.96 | L33: =VLOOKUP($W33,'RR-1C'!$B:$AA,13,FALSE) -> 3390.097422 | M33: =VLOOKUP($W33,'RR-1C'!$B:$AA,14,FALSE) -> 1065 | N33: =VLOOKUP($W33,'[2]Transporte RR-1C'!$B:$AA,15,FALSE) ->  | O33: =VLOOKUP($W33,'RR-1C'!$B:$AA,18,FALSE) -> 296.38 | P33: =VLOOKUP($W33,'RR-1C'!$B:$AA,19,FALSE) -> 65.05 | Q33: =VLOOKUP($W33,'RR-1C'!$B:$AA,20,FALSE) -> 422.6 | R33: =VLOOKUP($W33,'RR-1C'!$B:$AA,21,FALSE) -> 784.03 | S33: =VLOOKUP($W33,'RR-1C'!$B:$AA,22,FALSE) -> 243.6 | T33: =VLOOKUP($W33,'RR-1C'!$B:$AA,23,FALSE) -> 54.13333333 | U33: =VLOOKUP($W33,'RR-1C'!$B:$AA,24,FALSE) -> 838.1633333 | V33: =VLOOKUP($W33,'RR-1C'!$B:$AA,25,FALSE) -> 3390.097422 | W33: =SMALL('RR-1C'!$AA$13:$AA$27,6) -> 4228.260755
